Workbook

Sheet паспорт
A1: ПАТ "УКРТРАНСГАЗ" | G1: ПАСПОРТ ФІЗИКО-ХІМІЧНИХ ПОКАЗНИКІВ ПРИРОДНОГО ГАЗУ № 678
A2: Філія "УМГ "ХАРКІВТРАНСГАЗ" | F2: переданого Краматорським ЛВУМГ та прийнятого ПАТ "ЗАПОРІЖГАЗ",
A3: Сєвєродонецьке ЛВУМГ | G3: Маршрут № 678
A4: Вимірювальна хіміко-аналітична лабораторія
A5: Свідоцтво № РЬ089/2014 чинно до 06.06.2017 р. | H5: по газопроводу "Маріуполь-Бердянськ" | V5: за період з | X5: 01.02.2017 р. | Z5: по | AA5: 28.02.2017 р.
A7: Число місяця | B7: Компонентний склад, мол. % | N7: Фізико-хімічні показники газу обчислені на основі компонентного складу, 101,325 кПа | X7: Температура точки роси за вологою (Р = 3.92 МПа), °С | Y7: Температура точки роси за вуглеводнями, °С | Z7: Вміст сірководню, г/м3 | AA7: Вміст меркаптанової сірки, г/м3 | AB7: Вміст механічних домішок, г/м3
N8: Густина абсолютна, кг/м3,при 20 °С, | O8: Температура вимірювання/згоряння при 20/25°С
B9: метан, С1 | C9: етан, С2 | D9: пропан, С3 | E9: ізо-бутан, і-С4 | F9: н-бутан, н-С4 | G9: нео-пентан, нео-С5 | H9: ізо-пентан, і-С5 | I9: н-пентан, н-С5 | J9: гексани та вищі, С6+ | K9: кисень, О2 | L9: азот, N2 | M9: діоксид вуглецю, CО2 | O9: Теплота згоряння нижча | R9: Теплота згоряння вища | U9: Число Воббе вище
O10: ккал/м³ | P10: МДж/м³ | Q10: кВт⋅год/м³ | R10: ккал/м³ | S10: МДж/м³ | T10: кВт⋅год/м³ | U10: ккал/м³ | V10: МДж/м³ | W10: кВт⋅год/м³
A11: 1 | B11: 92.86196136 | C11: 3.52355886 | D11: 0.80750436 | E11: 0.07197198 | F11: 0.0921213 | G11: 0.01688799 | H11: 0.02089651 | I11: 0 | J11: 0.02543008 | L11: 2.32102418 | M11: 0.25866687 | N11: 0.71743566 | O11: 8146.6657 | P11: 34.10845947 | Q11: 9.474572075 | R11: 9030.066797 | S11: 37.80708313 | T11: 10.50196754 | U11: 11700.20458 | V11: 48.98641586 | W11: 13.60733774 | AC11: =SUM(B11:M11)+$K$42+$N$42 -> 100.0000235
A12: 2 | B12: 92.94298553 | C12: 3.53196239 | D12: 0.83410108 | E12: 0.07953701 | F12: 0.10159017 | G12: 0.01699082 | H12: 0.02087767 | I12: 0 | J12: 0.02654473 | L12: 2.20955372 | M12: 0.23580188 | N12: 0.71731126 | O12: 8164.752439 | P12: 34.18418503 | Q12: 9.495606953 | R12: 9049.863716 | S12: 37.88996887 | T12: 10.52499135 | U12: 11726.87594 | V12: 49.0980835 | W12: 13.63835653 | AC12: 99.999945
A13: 3 | B13: 93.09378052 | C13: 3.41956973 | D13: 0.84183508 | E13: 0.08485001 | F13: 0.10532047 | G13: 0.01691863 | H13: 0.02087954 | I13: 0 | J13: 0.02661971 | L13: 2.15614581 | M13: 0.23407653 | N13: 0.71661651 | O13: 8164.767016 | P13: 34.18424606 | Q13: 9.495623906 | R13: 9050.055963 | S13: 37.89077377 | T13: 10.52521494 | U13: 11732.81192 | V13: 49.12293625 | W13: 13.64526007 | AC13: 99.99999603 | AD13: =IF(AC13=100,"ОК"," ") -> 
A14: 4 | B14: 93.31127167 | C14: 3.21557474 | D14: 0.79687673 | E14: 0.08328504 | F14: 0.10533313 | G14: 0.01714179 | H14: 0.02119909 | I14: 0 | J14: 0.02776255 | L14: 2.1571188 | M14: 0.2644029 | N14: 0.71526831 | O14: 8144.116373 | P14: 34.09778595 | Q14: 9.471607208 | R14: 9027.840918 | S14: 37.79776382 | T14: 10.49937884 | U14: 11715.0131 | V14: 49.04841614 | W14: 13.62456004 | AC14: 99.99996644 | AD14: =IF(AC14=100,"ОК"," ") -> 
A15: 5 | B15: 93.79843903 | C15: 2.73123646 | D15: 0.69265133 | E15: 0.07618307 | F15: 0.10204934 | G15: 0.01777752 | H15: 0.02163545 | I15: 0 | J15: 0.02982639 | L15: 2.1970439 | M15: 0.33314148 | N15: 0.71210349 | O15: 8091.166356 | P15: 33.87609482 | Q15: 9.410026339 | R15: 8970.785373 | S15: 37.55888367 | T15: 10.43302324 | U15: 11666.83373 | V15: 48.84669876 | W15: 13.56852743 | AC15: 99.99998397
A16: 6 | B16: 93.60845184 | C16: 2.79252601 | D16: 0.76698339 | E16: 0.09423395 | F16: 0.13402787 | G16: 0.01798127 | H16: 0.0218589 | I16: 0 | J16: 0.03026257 | L16: 2.17308068 | M16: 0.36055616 | N16: 0.71444088 | O16: 8113.464312 | P16: 33.9694519 | Q16: 9.435958861 | R16: 8994.669598 | S16: 37.65888214 | T16: 10.46080059 | U16: 11678.74577 | V16: 48.89657211 | W16: 13.58238114 | AC16: 99.99996264
A17: 7 | B17: 93.17412567 | C17: 3.17898726 | D17: 0.83899188 | E17: 0.09644106 | F17: 0.13334297 | G17: 0.01746842 | H17: 0.02145117 | I17: 0 | J17: 0.02954498 | L17: 2.18508053 | M17: 0.32457182 | N17: 0.71717995 | O17: 8148.343081 | P17: 34.11548233 | Q17: 9.476522869 | R17: 9032.096784 | S17: 37.81558228 | T17: 10.50432841 | U17: 11704.91692 | V17: 49.00614548 | W17: 13.61281819 | AC17: 100.0000058
A18: 8 | B18: 93.5892868 | C18: 2.91803408 | D18: 0.74087358 | E18: 0.08310458 | F18: 0.11419047 | G18: 0.01854872 | H18: 0.02263549 | I18: 0 | J18: 0.02987476 | L18: 2.21600175 | M18: 0.26745954 | N18: 0.7134726 | O18: 8116.543914 | P18: 33.98234558 | Q18: 9.439540439 | R18: 8998.116383 | S18: 37.67331314 | T18: 10.46480921 | U18: 11691.13889 | V18: 48.94845963 | W18: 13.59679434 | X18: -19.2 | Y18: -17.3 | Z18: 0.0003 | AA18: 0.004 | AB18: відс. | AC18: 100.0000098
A19: 9 | B19: 93.46528625 | C19: 3.05003309 | D19: 0.75811291 | E19: 0.07622471 | F19: 0.09794077 | G19: 0.01808465 | H19: 0.0221231 | I19: 0 | J19: 0.02921302 | L19: 2.15570092 | M19: 0.3272616 | N19: 0.7143991 | O19: 8122.285822 | P19: 34.0063858 | Q19: 9.446218278 | R19: 9004.260097 | S19: 37.69903564 | T19: 10.47195434 | U19: 11691.54343 | V19: 48.95015335 | W19: 13.59726482 | AC19: 99.99998102
A20: 10 | B20: 93.28213501 | C20: 3.20453382 | D20: 0.80645645 | E20: 0.08252586 | F20: 0.10701379 | G20: 0.01743776 | H20: 0.02128609 | I20: 0 | J20: 0.02940413 | L20: 2.10182214 | M20: 0.34734786 | N20: 0.71608269 | O20: 8143.207983 | P20: 34.0939827 | Q20: 9.47055075 | R20: 9026.782193 | S20: 37.79333115 | T20: 10.49814754 | U20: 11707.00249 | V20: 49.01487732 | W20: 13.6152437 | AC20: 99.99996291
A21: 11 | B21: 93.56228638 | C21: 2.95515966 | D21: 0.75982159 | E21: 0.0813427 | F21: 0.10962956 | G21: 0.01760343 | H21: 0.02130273 | I21: 0 | J21: 0.0302809 | L21: 2.09498692 | M21: 0.36758626 | N21: 0.71432757 | O21: 8121.322764 | P21: 34.00235367 | Q21: 9.445098242 | R21: 9003.300684 | S21: 37.69501877 | T21: 10.47083855 | U21: 11690.88651 | V21: 48.94740295 | W21: 13.59650082 | AC21: 100.0000001
A22: 12 | B22: 93.50286865 | C22: 3.00321293 | D22: 0.76492488 | E22: 0.08208881 | F22: 0.11112291 | G22: 0.01756688 | H22: 0.02138962 | I22: 0 | J22: 0.03060198 | L22: 2.11051464 | M22: 0.35567766 | N22: 0.71465826 | O22: 8125.195956 | P22: 34.01856995 | Q22: 9.449602764 | R22: 9007.439011 | S22: 37.71234512 | T22: 10.47565142 | U22: 11693.54791 | V22: 48.95854568 | W22: 13.59959602 | AC22: 99.99996896
A23: 13 | B23: 93.69041443 | C23: 2.85966229 | D23: 0.73498851 | E23: 0.08094338 | F23: 0.11058227 | G23: 0.01790786 | H23: 0.02165627 | I23: 0 | J23: 0.03046598 | L23: 2.09189463 | M23: 0.3614732 | N23: 0.7134189 | O23: 8113.321267 | P23: 33.968853 | Q23: 9.4357925 | R23: 8994.757065 | S23: 37.65924835 | T23: 10.46090232 | U23: 11687.22288 | V23: 48.93206406 | W23: 13.59224002 | AC23: 99.99998882
A24: 14 | B24: 93.95513153 | C24: 2.58614111 | D24: 0.67219073 | E24: 0.07658295 | F24: 0.10835999 | G24: 0.01830819 | H24: 0.02197589 | I24: 0 | J24: 0.03145243 | L24: 2.12039232 | M24: 0.40949833 | N24: 0.71170735 | O24: 8081.560365 | P24: 33.83587646 | Q24: 9.398854572 | R24: 8960.49513 | S24: 37.51580048 | T24: 10.42105569 | U24: 11656.70111 | V24: 48.80427551 | W24: 13.5567432 | AC24: 100.0000335
A25: 15 | B25: 93.6971817 | C25: 2.84466219 | D25: 0.70295411 | E25: 0.07679483 | F25: 0.11303253 | G25: 0.02041354 | H25: 0.02267856 | I25: 0.00486248 | J25: 0.03063436 | L25: 2.24874163 | M25: 0.23805034 | N25: 0.71246606 | O25: 8107.475489 | P25: 33.9443779 | Q25: 9.428993861 | R25: 8988.405616 | S25: 37.6326561 | T25: 10.45351558 | U25: 11686.80012 | V25: 48.93029404 | W25: 13.59174834 | AC25: 100.0000063
A26: 16 | B26: 93.61079407 | C26: 3.14286613 | D26: 0.71999943 | E26: 0.08193608 | F26: 0.12449653 | G26: 0.02103258 | H26: 0.02278486 | I26: 0.00633495 | J26: 0.03133597 | L26: 2.02046633 | M26: 0.21793264 | N26: 0.71341306 | O26: 8151.982113 | P26: 34.13071823 | Q26: 9.480755064 | R26: 9036.840098 | S26: 37.83544159 | T26: 10.50984489 | U26: 11741.90859 | V26: 49.16102219 | W26: 13.6558395 | AC26: 99.99997957
A27: 17 | B27: 94.1754303 | C27: 2.77179241 | D27: 0.67348218 | E27: 0.08111579 | F27: 0.12061442 | G27: 0.0200135 | H27: 0.02235042 | I27: 0.01164902 | J27: 0.03435893 | L27: 1.84213769 | M27: 0.24701327 | N27: 0.71023726 | O27: 8135.93356 | P27: 34.06352615 | Q27: 9.462090597 | R27: 9020.120957 | S27: 37.76544189 | T27: 10.49040053 | U27: 11746.39861 | V27: 49.17982101 | W27: 13.66106139 | AC27: 99.99995793
A28: 18 | B28: 93.97641754 | C28: 2.5420804 | D28: 0.65729511 | E28: 0.08121944 | F28: 0.10281654 | G28: 0.01859722 | H28: 0.02265221 | I28: 0.00140918 | J28: 0.03663394 | L28: 1.73012924 | M28: 0.83075374 | N28: 0.7144419 | O28: 8076.656692 | P28: 33.81534576 | Q28: 9.3931516 | R28: 8955.152293 | S28: 37.49343109 | T28: 10.41484197 | U28: 11627.52507 | V28: 48.68212128 | W28: 13.52281147 | AC28: 100.0000046
A29: 19 | B29: 94.1893 | C29: 2.7539 | D29: 0.6671 | E29: 0.0761 | F29: 0.1049 | G29: 0.0047 | H29: 0.0214 | I29: 0.0186 | J29: 0.0318 | K29: 0.0109 | L29: 1.9175 | M29: 0.2047 | N29: 0.7093 | O29: 8123.029636 | P29: 34.0095 | Q29: 9.447083333 | R29: 9001.958663 | S29: 37.6894 | T29: 10.46927778 | U29: 11730.1043 | V29: 49.1116 | W29: 13.64211111 | AC29: 100.0009
A30: 20 | L30: 1.9175 | M30: 0.2047 | N30: 0.7093 | O30: 8123.029636 | P30: 34.0095 | Q30: 9.447083333 | R30: 9001.958663 | S30: 37.6894 | T30: 10.46927778 | U30: 11730.1043 | V30: 49.1116 | W30: 13.64211111 | AC30: 2.1222 | AD30: =IF(AC30=100,"ОК"," ") -> 
A31: 21 | L31: 1.9175 | M31: 0.2047 | N31: 0.7093 | O31: 8123.029636 | P31: 34.0095 | Q31: 9.447083333 | R31: 9001.958663 | S31: 37.6894 | T31: 10.46927778 | U31: 11730.1043 | V31: 49.1116 | W31: 13.64211111 | AC31: 2.1222
A32: 22 | L32: 1.9175 | M32: 0.2047 | N32: 0.7093 | O32: 8123.029636 | P32: 34.0095 | Q32: 9.447083333 | R32: 9001.958663 | S32: 37.6894 | T32: 10.46927778 | U32: 11730.1043 | V32: 49.1116 | W32: 13.64211111 | AC32: 2.1222
A33: 23 | L33: 1.9175 | M33: 0.2047 | N33: 0.7093 | O33: 8123.029636 | P33: 34.0095 | Q33: 9.447083333 | R33: 9001.958663 | S33: 37.6894 | T33: 10.46927778 | U33: 11730.1043 | V33: 49.1116 | W33: 13.64211111 | AC33: 2.1222 | AD33: =IF(AC33=100,"ОК"," ") -> 
A34: 24 | B34: 94.06723022 | C34: 3.13743043 | D34: 0.7927112 | E34: 0.09190935 | F34: 0.10214504 | G34: 0.01506503 | H34: 0.01851287 | I34: 5.41e-06 | J34: 0.00239729 | L34: 1.45979226 | M34: 0.31283933 | N34: 0.71109915 | O34: 8182.676998 | P34: 34.25923157 | Q34: 9.516453214 | R34: 9071.161258 | S34: 37.97913742 | T34: 10.54976039 | U34: 11805.71375 | V34: 49.42816162 | W34: 13.73004489 | AC34: 100.0000384
A35: 25 | B35: 94.06173706 | C35: 3.03336883 | D35: 0.76569676 | E35: 0.08689256 | F35: 0.0964587 | G35: 0.01506929 | H35: 0.01839167 | I35: 5.41e-06 | J35: 0.00235719 | L35: 1.55393004 | M35: 0.36609519 | N35: 0.71106756 | O35: 8159.005064 | P35: 34.16012192 | Q35: 9.488922756 | R35: 9045.349094 | S35: 37.87106705 | T35: 10.51974085 | U35: 11772.43036 | V35: 49.28881073 | W35: 13.69133631 | AC35: 100.0000027
A36: 26 | B36: 94.77055359 | C36: 2.6643672 | D36: 0.71746767 | E36: 0.08337761 | F36: 0.08304898 | G36: 0.01392557 | H36: 0.01796087 | I36: 5.41e-06 | J36: 0.00219933 | L36: 1.29709971 | M36: 0.34999517 | N36: 0.70652986 | O36: 8148.178168 | P36: 34.11479187 | Q36: 9.476331075 | R36: 9034.600553 | S36: 37.82606506 | T36: 10.50724029 | U36: 11796.08771 | V36: 49.38785934 | W36: 13.71884982 | AC36: 100.0000011
A37: 27 | B37: 94.53688049 | C37: 2.87576008 | D37: 0.75191826 | E37: 0.08108789 | F37: 0.07915346 | G37: 0.01268292 | H37: 0.01644108 | I37: 5.41e-06 | J37: 0.00189585 | L37: 1.28449285 | M37: 0.35974824 | N37: 0.70804471 | O37: 8164.002583 | P37: 34.18104553 | Q37: 9.494734869 | R37: 9051.565698 | S37: 37.89709473 | T37: 10.52697076 | U37: 11805.58619 | V37: 49.42762756 | W37: 13.72989654 | AC37: 100.0000665
A38: 28 | B38: 94.4597168 | C38: 2.93028116 | D38: 0.7535587 | E38: 0.07915597 | F38: 0.0779902 | G38: 0.01217568 | H38: 0.0156858 | I38: 0 | J38: 0.00174698 | L38: 1.33612216 | M38: 0.33360571 | N38: 0.70824665 | O38: 8164.642193 | P38: 34.18372345 | Q38: 9.495478736 | R38: 9052.164306 | S38: 37.89960098 | T38: 10.52766694 | U38: 11804.67871 | V38: 49.42382813 | W38: 13.72884115 | AC38: 100.0000392
A39: 29 | B39: 96.1882 | C39: 2.0721 | D39: 0.6594 | E39: 0.1046 | F39: 0.1031 | G39: 0.0041 | H39: 0.0205 | I39: 0.0145 | J39: 0.0047 | K39: 0.0076 | L39: 0.6366 | M39: 0.1845 | N39: 0.6982 | O39: =P39*238.8459 -> 8179.015115 | P39: 34.2439 | Q39: =P39/3.6 -> 9.512194444 | R39: =S39*238.8459 -> 9065.993249 | S39: 37.9575 | T39: =S39/3.6 -> 10.54375 | U39: 11908 | V39: 49.8549 | W39: =V39/3.6 -> 13.84858333 | X39: -20.6 | Y39: -2 | AC39: 99.9999
A40: 30 | O40: 8178.083616 | P40: 34.24 | Q40: =P40/3.6 -> 9.511111111 | R40: 9066.590364 | S40: 37.96 | T40: =S40/3.6 -> 10.54444444 | AC40: 0
A41: 31 | O41: 8179.015115 | P41: 34.2439 | Q41: =P41/3.6 -> 9.512194444 | R41: 9065.993249 | S41: 37.9575 | T41: =S41/3.6 -> 10.54375 | AC41: 0
A42: Рівень одоризації відповідає чинним нормативним документам | O42: =SUMPRODUCT(O11:O38,' розрахунок'!M7:M34)/' розрахунок'!M38 -> 8132.93436 | P42: =SUMPRODUCT(P11:P38,' розрахунок'!M7:M34)/' розрахунок'!M38 -> 34.0509691 | Q42: =SUMPRODUCT(Q11:Q38,' розрахунок'!M7:M34)/' розрахунок'!M38 -> 9.458602528 | R42: =SUMPRODUCT(R11:R38,' розрахунок'!M7:M34)/' розрахунок'!M38 -> 9015.598233 | S42: =SUMPRODUCT(S11:S38,' розрахунок'!M7:M34)/' розрахунок'!M38 -> 37.74650615 | T42: =SUMPRODUCT(T11:T38,' розрахунок'!M7:M34)/' розрахунок'!M38 -> 10.4851406
H43: Середньозважене значення теплоти згоряння:
B46: Начальник управління Северодонецького ЛВУМГ Головко Ю.О.
C47: Підрозділу підприємства, якому підпорядкована лабораторія | O47: прізвище | R47: підпис | V47: дата
B48: Інженер ІІ кат. ВХАЛ Єрьоменко М.О.
C49: Лабораторія, де здійснювалось вимірювання газу | O49: прізвище | R49: підпис | V49: дата
B50: Начальник служби метрології Левкович А.М.
C51: Підрозділу, відповідального за облік газу за маршрутом | O51: прізвище | R51: підпис | V51: дата

Sheet розрахунок (hidden)
A2: Додаток до Паспорту фізико-хімічних показників природного газу по маршруту № 678
A4: Число місяця | B4: Теплота згоряння вища, МДж/м3 | C4: Запорізька область | M4: Загальний обсяг газу, м3
C5: Обсяг газу переданого за добу, м3
C6: ГРС м. Бердянськ | D6: АГНКС м.Бердянськ | E6: ГРС с. Червоне Поле | F6: ГРС к-п Україна | G6: ГРС с. Осипенко | H6: ГРС с. Андріївка | I6: ГРС с. Дмитрівка | J6: ГРС с. Маринівка | K6: ГРС к-п Росія | L6: ТОВ ВТФ "АЛЕКС І К"
A7: 1 | B7: =паспорт!S11 -> 37.80708313 | C7: =Лист1!C3 -> 481129.59 | D7: =Лист1!W3 -> 1198.91 | E7: =Лист1!O3 -> 7615.57 | F7: =Лист1!Q3 -> 12095.2 | G7: =Лист1!M3 -> 25810.42 | H7: =Лист1!G3 -> 17440.42 | I7: =Лист1!I3 -> 17097.81 | J7: =Лист1!K3 -> 72748.93 | K7: =Лист1!E3 -> 13164.69 | L7: =Лист1!Y3-Лист1!AA3 -> 371.96 | M7: =SUM(C7:L7) -> 648673.5
A8: 2 | B8: =паспорт!S12 -> 37.88996887 | C8: =Лист1!C4 -> 449560.47 | D8: =Лист1!W4 -> 1397.64 | E8: =Лист1!O4 -> 6883.83 | F8: =Лист1!Q4 -> 11113.38 | G8: =Лист1!M4 -> 23860.39 | H8: =Лист1!G4 -> 16171 | I8: =Лист1!I4 -> 16125.53 | J8: =Лист1!K4 -> 67203.68 | K8: =Лист1!E4 -> 12085.97 | L8: =Лист1!Y4-Лист1!AA4 -> 239.61 | M8: 604641.5
A9: 3 | B9: =паспорт!S13 -> 37.89077377 | C9: =Лист1!C5 -> 423909.63 | D9: =Лист1!W5 -> 1356.39 | E9: =Лист1!O5 -> 6581.23 | F9: =Лист1!Q5 -> 10601.82 | G9: =Лист1!M5 -> 23037.63 | H9: =Лист1!G5 -> 15893.95 | I9: =Лист1!I5 -> 15467.49 | J9: =Лист1!K5 -> 64608.18 | K9: =Лист1!E5 -> 11778.37 | L9: =Лист1!Y5-Лист1!AA5 -> 454.68 | M9: 573689.37
A10: 4 | B10: =паспорт!S14 -> 37.79776382 | C10: =Лист1!C6 -> 397925.31 | D10: =Лист1!W6 -> 1010.79 | E10: =Лист1!O6 -> 6004.5 | F10: =Лист1!Q6 -> 9816.67 | G10: =Лист1!M6 -> 21670.56 | H10: =Лист1!G6 -> 14470.11 | I10: =Лист1!I6 -> 14314.24 | J10: =Лист1!K6 -> 59312.37 | K10: =Лист1!E6 -> 10971 | L10: =Лист1!Y6-Лист1!AA6 -> 209.08 | M10: 535704.63
A11: 5 | B11: =паспорт!S15 -> 37.55888367 | C11: =Лист1!C7 -> 384335.41 | D11: =Лист1!W7 -> 826.49 | E11: =Лист1!O7 -> 5715.66 | F11: =Лист1!Q7 -> 9215.5 | G11: =Лист1!M7 -> 19910.78 | H11: =Лист1!G7 -> 13723.88 | I11: =Лист1!I7 -> 13540.69 | J11: =Лист1!K7 -> 56389.89 | K11: =Лист1!E7 -> 10032.3 | L11: =Лист1!Y7-Лист1!AA7 -> 0 | M11: 513690.6
A12: 6 | B12: =паспорт!S16 -> 37.65888214 | C12: =Лист1!C8 -> 403955.25 | D12: =Лист1!W8 -> 1217.75 | E12: =Лист1!O8 -> 5863.38 | F12: =Лист1!Q8 -> 9513.64 | G12: =Лист1!M8 -> 20146.24 | H12: =Лист1!G8 -> 13959.82 | I12: =Лист1!I8 -> 13616.08 | J12: =Лист1!K8 -> 56669.26 | K12: =Лист1!E8 -> 10315.18 | L12: =Лист1!Y8-Лист1!AA8 -> 157.61 | M12: 535414.21
A13: 7 | B13: =паспорт!S17 -> 37.81558228 | C13: =Лист1!C9 -> 500163.19 | D13: =Лист1!W9 -> 1585.95 | E13: =Лист1!O9 -> 7121.02 | F13: =Лист1!Q9 -> 11121.18 | G13: =Лист1!M9 -> 23774.05 | H13: =Лист1!G9 -> 16651.69 | I13: =Лист1!I9 -> 16049.96 | J13: =Лист1!K9 -> 65656.07 | K13: =Лист1!E9 -> 12496.38 | L13: =Лист1!Y9-Лист1!AA9 -> 447.91 | M13: 655067.4
A14: 8 | B14: =паспорт!S18 -> 37.67331314 | C14: =Лист1!C10 -> 535653.94 | D14: =Лист1!W10 -> 1432.4 | E14: =Лист1!O10 -> 7753.53 | F14: =Лист1!Q10 -> 12037.82 | G14: =Лист1!M10 -> 26059.06 | H14: =Лист1!G10 -> 17602.67 | I14: =Лист1!I10 -> 17510.29 | J14: =Лист1!K10 -> 72749.36 | K14: =Лист1!E10 -> 13617.25 | L14: =Лист1!Y10-Лист1!AA10 -> 311.46 | M14: 704727.78
A15: 9 | B15: =паспорт!S19 -> 37.69903564 | C15: =Лист1!C11 -> 533481.56 | D15: =Лист1!W11 -> 1249.41 | E15: =Лист1!O11 -> 7717.68 | F15: =Лист1!Q11 -> 12029.15 | G15: =Лист1!M11 -> 25942.71 | H15: =Лист1!G11 -> 18126.1 | I15: =Лист1!I11 -> 17367.05 | J15: =Лист1!K11 -> 72772.04 | K15: =Лист1!E11 -> 13434.92 | L15: =Лист1!Y11-Лист1!AA11 -> 301.41 | M15: 702422.03
A16: 10 | B16: =паспорт!S20 -> 37.79333115 | C16: =Лист1!C12 -> 533283.25 | D16: =Лист1!W12 -> 1076.95 | E16: =Лист1!O12 -> 7680.79 | F16: =Лист1!Q12 -> 12057.83 | G16: =Лист1!M12 -> 26132.03 | H16: =Лист1!G12 -> 18107.54 | I16: =Лист1!I12 -> 17359.23 | J16: =Лист1!K12 -> 72501.19 | K16: =Лист1!E12 -> 13320.5 | L16: =Лист1!Y12-Лист1!AA12 -> 230.89 | M16: 701750.2
A17: 11 | B17: =паспорт!S21 -> 37.69501877 | C17: =Лист1!C13 -> 497728.53 | D17: =Лист1!W13 -> 972.54 | E17: =Лист1!O13 -> 7406.93 | F17: =Лист1!Q13 -> 12031.47 | G17: =Лист1!M13 -> 25868.1 | H17: =Лист1!G13 -> 17142.13 | I17: =Лист1!I13 -> 17246.84 | J17: =Лист1!K13 -> 71982.12 | K17: =Лист1!E13 -> 13155.19 | L17: =Лист1!Y13-Лист1!AA13 -> 256.56 | M17: 663790.41
A18: 12 | B18: =паспорт!S22 -> 37.71234512 | C18: =Лист1!C14 -> 464983.84 | D18: =Лист1!W14 -> 562.94 | E18: =Лист1!O14 -> 6958.9 | F18: =Лист1!Q14 -> 11334.66 | G18: =Лист1!M14 -> 24592.67 | H18: =Лист1!G14 -> 16713.25 | I18: =Лист1!I14 -> 16257.29 | J18: =Лист1!K14 -> 68539.63 | K18: =Лист1!E14 -> 12215.05 | L18: =Лист1!Y14-Лист1!AA14 -> 174.37 | M18: 622332.6
A19: 13 | B19: =паспорт!S23 -> 37.65924835 | C19: =Лист1!C15 -> 447309.53 | D19: =Лист1!W15 -> 1131.85 | E19: =Лист1!O15 -> 6663.2 | F19: =Лист1!Q15 -> 10796.51 | G19: =Лист1!M15 -> 22973.69 | H19: =Лист1!G15 -> 15839.99 | I19: =Лист1!I15 -> 15619.9 | J19: =Лист1!K15 -> 64958.71 | K19: =Лист1!E15 -> 11534.96 | L19: =Лист1!Y15-Лист1!AA15 -> 268.52 | M19: 597096.86
A20: 14 | B20: =паспорт!S24 -> 37.51580048 | C20: =Лист1!C16 -> 475279,38* | D20: =Лист1!W16 -> 1242.98 | E20: =Лист1!O16 -> 7039.07 | F20: =Лист1!Q16 -> 11189.63 | G20: =Лист1!M16 -> 24618.81 | H20: =Лист1!G16 -> 16331.52 | I20: =Лист1!I16 -> 16328.05 | J20: =Лист1!K16 -> 68025.51 | K20: =Лист1!E16 -> 12421.3 | L20: =Лист1!Y16-Лист1!AA16 -> 129.49 | M20: 157326.36
A21: 15 | B21: =паспорт!S25 -> 37.6326561 | C21: =Лист1!C17 -> 428212.38 | D21: =Лист1!W17 -> 1308.28 | E21: =Лист1!O17 -> 6481.11 | F21: =Лист1!Q17 -> 10529.28 | G21: =Лист1!M17 -> 22626.53 | H21: =Лист1!G17 -> 15389.43 | I21: =Лист1!I17 -> 15356.44 | J21: =Лист1!K17 -> 64135.38 | K21: =Лист1!E17 -> 11274.92 | L21: =Лист1!Y17-Лист1!AA17 -> 382.88 | M21: 575696.63
A22: 16 | B22: =паспорт!S26 -> 37.83544159 | C22: =Лист1!C18 -> 441647 | D22: =Лист1!W18 -> 1215.54 | E22: =Лист1!O18 -> 6555.41 | F22: =Лист1!Q18 -> 10659.84 | G22: =Лист1!M18 -> 22312.18 | H22: =Лист1!G18 -> 15458.53 | I22: =Лист1!I18 -> 15212.71 | J22: =Лист1!K18 -> 62777.36 | K22: =Лист1!E18 -> 11240.23 | L22: =Лист1!Y18-Лист1!AA18 -> 419.85 | M22: 587498.65
A23: 17 | B23: =паспорт!S27 -> 37.76544189 | C23: =Лист1!C19 -> 426372.81 | D23: =Лист1!W19 -> 1028.44 | E23: =Лист1!O19 -> 6583.62 | F23: =Лист1!Q19 -> 10588.34 | G23: =Лист1!M19 -> 22073.97 | H23: =Лист1!G19 -> 15531.3 | I23: =Лист1!I19 -> 15075.22 | J23: =Лист1!K19 -> 63123.59 | K23: =Лист1!E19 -> 11154.39 | L23: =Лист1!Y19-Лист1!AA19 -> 259.67 | M23: 571791.35
A24: 18 | B24: =паспорт!S28 -> 37.49343109 | C24: =Лист1!C20 -> 399893.72 | D24: =Лист1!W20 -> 866.36 | E24: =Лист1!O20 -> 6115.67 | F24: =Лист1!Q20 -> 10106.74 | G24: =Лист1!M20 -> 20867.13 | H24: =Лист1!G20 -> 14601.9 | I24: =Лист1!I20 -> 14345.11 | J24: =Лист1!K20 -> 59134.16 | K24: =Лист1!E20 -> 10489.05 | L24: =Лист1!Y20-Лист1!AA20 -> 158.77 | M24: 536578.61
A25: 19 | B25: =паспорт!S29 -> 37.6894 | C25: =Лист1!C21 -> 375352.28 | D25: =Лист1!W21 -> 615.5 | E25: =Лист1!O21 -> 5636.28 | F25: =Лист1!Q21 -> 9409.56 | G25: =Лист1!M21 -> 19471.95 | H25: =Лист1!G21 -> 13718.98 | I25: =Лист1!I21 -> 13242.75 | J25: =Лист1!K21 -> 54667.55 | K25: =Лист1!E21 -> 9821.26 | L25: =Лист1!Y21-Лист1!AA21 -> 96.9 | M25: 502033.01
A26: 20 | B26: =паспорт!S30 -> 37.6894 | C26: =Лист1!C22 -> 360547.25 | D26: =Лист1!W22 -> 1209.29 | E26: =Лист1!O22 -> 5296.3 | F26: =Лист1!Q22 -> 8670.76 | G26: =Лист1!M22 -> 18419.04 | H26: =Лист1!G22 -> 12655.21 | I26: =Лист1!I22 -> 12709.32 | J26: =Лист1!K22 -> 53503.75 | K26: =Лист1!E22 -> 9389.35 | L26: =Лист1!Y22-Лист1!AA22 -> 288.84 | M26: 482689.11
A27: 21 | B27: =паспорт!S31 -> 37.6894 | C27: =Лист1!C23 -> 362526.28 | D27: =Лист1!W23 -> 1401.12 | E27: =Лист1!O23 -> 5462.98 | F27: =Лист1!Q23 -> 8814.83 | G27: =Лист1!M23 -> 18595.25 | H27: =Лист1!G23 -> 12618.43 | I27: =Лист1!I23 -> 12592.14 | J27: =Лист1!K23 -> 52389.27 | K27: =Лист1!E23 -> 9431.14 | L27: =Лист1!Y23-Лист1!AA23 -> 266.66 | M27: 484098.1
A28: 22 | B28: =паспорт!S32 -> 37.6894 | C28: =Лист1!C24 -> 370704.03 | D28: =Лист1!W24 -> 1130.58 | E28: =Лист1!O24 -> 5386.15 | F28: =Лист1!Q24 -> 8798.77 | G28: =Лист1!M24 -> 18546.76 | H28: =Лист1!G24 -> 12530.44 | I28: =Лист1!I24 -> 12809.97 | J28: =Лист1!K24 -> 52982.82 | K28: =Лист1!E24 -> 9458.84 | L28: =Лист1!Y24-Лист1!AA24 -> 198.9 | M28: 492547.26
A29: 23 | B29: =паспорт!S33 -> 37.6894 | C29: =Лист1!C25 -> 368008.31 | D29: =Лист1!W25 -> 1092.42 | E29: =Лист1!O25 -> 5445.94 | F29: =Лист1!Q25 -> 8838,84* | G29: =Лист1!M25 -> 18766.34 | H29: =Лист1!G25 -> 12883.9 | I29: =Лист1!I25 -> 12882.29 | J29: =Лист1!K25 -> 53172.94 | K29: =Лист1!E25 -> 9615.45 | L29: =Лист1!Y25-Лист1!AA25 -> 339.01 | M29: 482206.6
A30: 24 | B30: =паспорт!S34 -> 37.97913742 | C30: =Лист1!C26 -> 338021.41 | D30: =Лист1!W26 -> 1132.42 | E30: =Лист1!O26 -> 4996.65 | F30: =Лист1!Q26 -> 8299.31 | G30: =Лист1!M26 -> 17514.45 | H30: =Лист1!G26 -> 12038.79 | I30: =Лист1!I26 -> 12735.42 | J30: =Лист1!K26 -> 48023.5 | K30: =Лист1!E26 -> 8726.49 | L30: =Лист1!Y26-Лист1!AA26 -> 271.2 | M30: 451759.64
A31: 25 | B31: =паспорт!S35 -> 37.87106705 | C31: =Лист1!C27 -> 355473.22 | D31: =Лист1!W27 -> 1158.81 | E31: =Лист1!O27 -> 5133.08 | F31: =Лист1!Q27 -> 8440.57 | G31: =Лист1!M27 -> 18061.07 | H31: =Лист1!G27 -> 12551.83 | I31: =Лист1!I27 -> 12366.54 | J31: =Лист1!K27 -> 50066.26 | K31: =Лист1!E27 -> 8890.55 | L31: =Лист1!Y27-Лист1!AA27 -> 170.99 | M31: 472312.92
A32: 26 | B32: =паспорт!S36 -> 37.82606506 | C32: =Лист1!C28 -> 356419.75 | D32: =Лист1!W28 -> 716.11 | E32: =Лист1!O28 -> 5264.02 | F32: =Лист1!Q28 -> 8504.16 | G32: =Лист1!M28 -> 18162.91 | H32: =Лист1!G28 -> 12477.75 | I32: =Лист1!I28 -> 12396.96 | J32: =Лист1!K28 -> 50340.63 | K32: =Лист1!E28 -> 9008.39 | L32: =Лист1!Y28-Лист1!AA28 -> 0.08 | M32: 473290.76
A33: 27 | B33: =паспорт!S37 -> 37.89709473 | C33: =Лист1!C29 -> 347670.09 | D33: =Лист1!W29 -> 1190.92 | E33: =Лист1!O29 -> 5260.77 | F33: =Лист1!Q29 -> 8573.37 | G33: =Лист1!M29 -> 17922.14 | H33: =Лист1!G29 -> 12126.85 | I33: =Лист1!I29 -> 12096.72 | J33: =Лист1!K29 -> 49628.53 | K33: =Лист1!E29 -> 8839.49 | L33: =Лист1!Y29-Лист1!AA29 -> 453.17 | M33: 463762.05
A34: 28 | B34: =паспорт!S38 -> 37.89960098 | C34: =Лист1!C30 -> 310346.34 | D34: =Лист1!W30 -> 1135.23 | E34: =Лист1!O30 -> 4840.16 | F34: =Лист1!Q30 -> 7720.43 | G34: =Лист1!M30 -> 17366.04 | H34: =Лист1!G30 -> 11501.23 | I34: =Лист1!I30 -> 11209.49 | J34: =Лист1!K30 -> 45628.75 | K34: =Лист1!E30 -> 8331.04 | L34: =Лист1!Y30-Лист1!AA30 -> 423.66 | M34: 418502.37
A35: 29 | B35: 37.9575 | C35: 104484.13 | D35: 2550.58 | E35: 172597.3 | F35: 6731.51 | G35: 28282.91 | H35: 71078.45 | I35: 3780.78 | J35: 16478.54 | M35: 405984.2
A36: 30 | B36: 37.96 | C36: 93755.22 | D36: 2251.65 | E36: 156928.03 | F36: 6054.5 | G36: 26299.84 | H36: 60324.38 | I36: 3142.81 | J36: 15516.28 | M36: 364272.71
A37: 31 | B37: 37.9575 | C37: 92050.88 | D37: 3124.98 | E37: 157999.45 | F37: 6122.1 | G37: 23698.82 | H37: 60708.33 | I37: 3145.17 | J37: 14948.5 | M37: 361798.23
A38: Загальний обсяг газу, м3 | C38: =SUM(C7:C34) -> 11294614.37 | D38: =SUM(D7:D34) -> 31464.01 | E38: 175463.43 | F38: 274070.42 | G38: 605102.9 | H38: 414258.64 | I38: 408931.53 | J38: 1693691.43 | K38: =SUM(K7:K34) -> 306213.65 | L38: 7284.13 | M38: =SUM(M7:M34) -> 15211094.51
A39: Енергія, МДж | C39: =SUMPRODUCT(B7:B34,C7:C34) -> 426357986.7 | D39: =SUMPRODUCT(B7:B34,D7:D34) -> 1187722.402 | E39: =SUMPRODUCT(B7:B34,E7:E34) -> 6621965.622 | F39: =SUMPRODUCT(B7:B34,F7:F34) -> 10343833.61 | G39: =SUMPRODUCT(B7:B34,G7:G34) -> 22836626.45 | H39: =SUMPRODUCT(B7:B34,H7:H34) -> 15634162.22 | I39: =SUMPRODUCT(B7:B34,I7:I34) -> 15433177.83 | J39: =SUMPRODUCT(B7:B34,J7:J34) -> 63918691.09 | K39: =SUMPRODUCT(B7:B34,K7:K34) -> 11556396.49 | L39: =SUMPRODUCT(B7:B34,L7:L34) -> 275110.051 | M39: =SUMPRODUCT(B7:B34,M7:M34) -> 574165672.4
A40: Теплота згоряння (середньозважене значення за місяць), МДж/м³ | C40: =C39/C38 -> 37.74878652 | D40: =D39/D38 -> 37.74860234 | E40: =E39/E38 -> 37.73986193 | F40: =F39/F38 -> 37.74151769 | G40: 37.74007107 | H40: 37.74009931 | I40: 37.74024916 | J40: 37.73927763 | K40: =K39/K38 -> 37.73965166 | L40: 37.76841585 | M40: 37.74650615
A41: Теплота згоряння (середньозважене значення за місяць), ккал/м³ | C41: =C40*238.8459 -> 9016.14289 | D41: =D40*238.8459 -> 9016.098901 | E41: 9014.011289 | F41: 9014.406761 | G41: 9014.06124 | H41: 9014.067987 | I41: 9014.103778 | J41: 9013.87173 | K41: =K40*238.8459 -> 9013.961067 | L41: 9020.831276 | M41: 9015.598233
A42: Теплота згоряння (середньозважене значення за місяць), кВт*год./м³ | C42: =C40/3.6 -> 10.48577403 | D42: =D40/3.6 -> 10.48572287 | E42: 10.48329498 | F42: 10.48375491 | G42: 10.48335307 | H42: 10.48336092 | I42: 10.48340255 | J42: 10.48313267 | K42: =K40/3.6 -> 10.48323657 | L42: 10.49122663 | M42: 10.4851406

Sheet додаток
A2: Додаток до Паспорту фізико-хімічних показників природного газу № 678
A4: Область | B4: ГРС, прямий споживач | C4: Cередньозважене значення вищої теплоти згоряння
C5: МДж/м³ | D5: ккал/м³ | E5: кВт*год./м³
A6: Запорізька область | B6: =' розрахунок'!C6 -> ГРС м. Бердянськ | C6: 37.74878652 | D6: 9016.14289 | E6: 10.48577403
B7: =' розрахунок'!D6 -> АГНКС м.Бердянськ | C7: 37.74295035 | D7: 9014.748944 | E7: 10.48415287
B8: =' розрахунок'!E6 -> ГРС с. Червоне Поле | C8: 37.73986193 | D8: 9014.011289 | E8: 10.48329498
B9: =' розрахунок'!F6 -> ГРС к-п Україна | C9: 37.74151769 | D9: 9014.406761 | E9: 10.48375491
B10: =' розрахунок'!G6 -> ГРС с. Осипенко | C10: 37.74007107 | D10: 9014.06124 | E10: 10.48335307
B11: =' розрахунок'!H6 -> ГРС с. Андріївка | C11: 37.74009931 | D11: 9014.067987 | E11: 10.48336092
B12: =' розрахунок'!I6 -> ГРС с. Дмитрівка | C12: 37.74024916 | D12: 9014.103778 | E12: 10.48340255
B13: =' розрахунок'!J6 -> ГРС с. Маринівка | C13: 37.73927763 | D13: 9013.87173 | E13: 10.48313267
B14: =' розрахунок'!K6 -> ГРС к-п Росія | C14: 37.73965166 | D14: 9013.961067 | E14: 10.48323657
B15: =' розрахунок'!L6 -> ТОВ ВТФ "АЛЕКС І К" | C15: 37.76841585 | D15: 9020.831276 | E15: 10.49122663
A16: Середньозважене значення вищої теплоти згоряння по маршруту № 678 | C16: 37.74408812 | D16: 9015.020696 | E16: 10.48446892
A20: Начальник управління Северодонецького ЛВУМГ Головко Ю.О.
A21: Підрозділу підприємства, якому підпорядкована лабораторія | D21: прізвище | E21: підпис | F21: дата
A22: Інженер ІІ кат. ВХАЛ Єрьоменко М.О.
A23: Лабораторія, де здійснювалось вимірювання газу | D23: прізвище | E23: підпис | F23: дата
A24: Начальник служби метрології Левкович А.М.
A25: Підрозділу, відповідального за облік газу за маршрутом | D25: прізвище | E25: підпис | F25: дата

Sheet variablesList (hidden)
A1: 3 | B1: x:\gaysin | C1: 10, 11, 24, 25, 127, 128, 132, 180, 207, 215 | D1: x:\
B2: x:\Illinci
B3: x:\Talne

Sheet Лист1
A1: подобъектов объекта ПАО ЗАПОРОЖГАЗ (осн.) за 2/17. | U1: подобъектов объекта АГНКС 3 (осн.) за 2/17. | DC1: Славянск УГГ (осн.) за 2/17. | DV1: ХАРЬКОВГАЗ (осн.) за 2/17. | EM1: АГНКС 1 (осн.) за 2/17. | FB1: Кнауф (осн.) за 2/17. | FI1: ЗЦМ (осн.) за 2/17. | FN1: Mashzavod (осн.) за 2/17. | FQ1: ГРС 1 Курахово (осн.) за 2/17. | FX1: НКМЗ (осн.) за 2/17. | GC1: Шидловка (Флоутек) (осн.) за 2/17.
A2: День | C2: Бердянск | E2: Россия | G2: Андреевка | I2: Дмитровка | K2: Мариновка | M2: Осипенко | O2: Червоне Поле | Q2: Украина | S2: ПАО ЗАПОРОЖГАЗ | U2: День | W2: АГНКС Бердянск | Y2: АГНКС Алекс & К | AA2: АГНКС обратный | AC2: АГНКС 3 | CV2: Ольгинка | CX2: Новотроицкое (УЗ) | CZ2: Чермалык | DB2: Покровск УГГ | DC2: День | DE2: liman | DG2: malinovka | DI2: Правдинская ПТФ | DK2: ray-aleks | DM2: SLTES1 | DO2: SLTES2 | DQ2: SLAVGRSBYT | DS2: Slaviansk | DU2: Славянск УГГ | DV2: День | DX2: Ду80 | DZ2: Ду150 | EB2: bragkovka | ED2: Govten | EF2: IZIUM | EH2: Петровское | EJ2: Stepok | EL2: ПАО ХАРЬКОВГАЗ | EM2: День | EO2: DrugAGNKS1 | EQ2: DrugAGNKS2 | ES2: Slav.AGNKS1 | EU2: KramatAGNKS1 | EW2: Константиновка | EY2: AGNKS | FA2: АГНКС 1 | FB2: День | FD2: Кнауф 1 | FF2: Кнауф 2 | FH2: Покровское Кнауф | FI2: День | FK2: ART3 | FM2: ГРС Артемовск ЗЦМ | FN2: День | FP2: Mashzavod | FQ2: День | FS2: Курахово-1 (перепад) | FU2: Курахово-1 (счетчик) | FW2: ГРС 1 Курахово | FX2: День | FZ2: NKMZ | GB2: ГРС НКМЗ | GC2: День | GE2: SMIZ | GG2: Shidlovka | GI2: ГРС Шидловка (Флоутек)
A3: 1 | B3: B | C3: 481129.59 | D3: B | E3: 13164.69 | F3: B | G3: 17440.42 | I3: 17097.81 | K3: 72748.93 | L3: B | M3: 25810.42 | N3: B | O3: 7615.57 | P3: B | Q3: 12095.2 | R3: B | S3: 647102.63 | U3: 1 | W3: 1198.91 | X3: A | Y3: 407.92 | Z3: A | AA3: 35.96 | AB3: A | AC3: 1642.79 | CV3: 7468.16 | CX3: 22300.64 | CZ3: 8432.68 | DB3: 1098619.86 | DC3: 1 | DD3: A | DE3: 163466.94 | DG3: 4452.74 | DI3: 13352.87 | DK3: 2333.62 | DL3: A | DM3: 102614.02 | DO3: 0 | DQ3: 14975.53 | DS3: 765505.25 | DT3: A | DU3: 1066700.95 | DV3: 1 | DX3: 0 | DZ3: 67802.32 | EB3: 9187.37 | ED3: 6577.76 | EF3: 335646.22 | EH3: 20390.42 | EJ3: 10589.57 | EL3: 450193.66 | EM3: 1 | EN3: A | EO3: 1584.2 | EP3: A | EQ3: 1.71 | ER3: A | ES3: 730.22 | ET3: A | EU3: 2684.53 | EV3: A | EW3: 2740.47 | EX3: A | EY3: 2661.1 | EZ3: A | FA3: 10402.23 | FB3: 1 | FD3: 0.32 | FF3: 123422.39 | FH3: 123422.71 | FI3: 1 | FK3: 7730.79 | FM3: 7730.79 | FN3: 1 | FP3: 34181.42 | FQ3: 1 | FR3: A | FS3: 889.19 | FU3: 7.31 | FV3: A | FW3: 896.49 | FX3: 1 | FY3: A | FZ3: 84971.74 | GA3: A | GB3: 84971.74 | GC3: 1 | GD3: A | GE3: 4126.13 | GG3: 0 | GH3: A | GI3: 4126.13
A4: 2 | B4: B | C4: 449560.47 | D4: B | E4: 12085.97 | F4: B | G4: 16171 | I4: 16125.53 | K4: 67203.68 | L4: B | M4: 23860.39 | N4: B | O4: 6883.83 | P4: B | Q4: 11113.38 | R4: B | S4: 603004.25 | U4: 2 | W4: 1397.64 | X4: AB | Y4: 263.7 | Z4: AB | AA4: 24.09 | AB4: AB | AC4: 1685.44 | CV4: 6877.63 | CW4: B | CX4: 19717.68 | CY4: B | CZ4: 7699.05 | DA4: AB | DB4: 1019948.59 | DC4: 2 | DD4: AB | DE4: 151350.38 | DF4: B | DG4: 4106.76 | DH4: B | DI4: 13283.9 | DJ4: B | DK4: 2256.81 | DL4: AB | DM4: 64324.08 | DN4: B | DO4: 0 | DP4: B | DQ4: 14133.67 | DR4: B | DS4: 701031.69 | DT4: AB | DU4: 950487.28 | DV4: 2 | DW4: B | DX4: 0 | DY4: B | DZ4: 61485.21 | EA4: B | EB4: 8317.99 | EC4: B | ED4: 5904.82 | EE4: B | EF4: 304756.63 | EG4: B | EH4: 18309.85 | EI4: B | EJ4: 9706.89 | EK4: B | EL4: 408481.39 | EM4: 2 | EN4: AB | EO4: 1708.27 | EP4: AB | EQ4: 0.81 | ER4: AB | ES4: 741.36 | ET4: AB | EU4: 2989.43 | EV4: AB | EW4: 2637.44 | EX4: AB | EY4: 2809.09 | EZ4: AB | FA4: 10886.4 | FB4: 2 | FC4: AB | FD4: 132075.97 | FE4: AB | FF4: 736.74 | FG4: AB | FH4: 132812.7 | FI4: 2 | FJ4: B | FK4: 8734.31 | FL4: B | FM4: 8734.31 | FN4: 2 | FO4: AB | FP4: 27287.37 | FQ4: 2 | FR4: AB | FS4: 728.85 | FT4: B | FU4: 0 | FV4: AB | FW4: 728.85 | FX4: 2 | FY4: AB | FZ4: 104713.02 | GA4: AB | GB4: 104713.02 | GC4: 2 | GD4: B | GE4: 4366.45 | GF4: B | GG4: 0 | GH4: B | GI4: 4366.45
A5: 3 | B5: B | C5: 423909.63 | D5: B | E5: 11778.37 | F5: B | G5: 15893.95 | I5: 15467.49 | K5: 64608.18 | L5: B | M5: 23037.63 | N5: B | O5: 6581.23 | P5: B | Q5: 10601.82 | R5: B | S5: 571878.29 | U5: 3 | W5: 1356.39 | X5: AB | Y5: 491.92 | Z5: AB | AA5: 37.24 | AB5: AB | AC5: 1885.55 | CV5: 6533.1 | CX5: 18600.57 | CZ5: 7103.26 | DA5: A | DB5: 938777.59 | DC5: 3 | DD5: A | DE5: 139973.63 | DG5: 3941.75 | DI5: 11560.05 | DK5: 2195.53 | DL5: A | DM5: 37725.43 | DO5: 0 | DQ5: 13722.9 | DS5: 669781.5 | DT5: A | DU5: 878900.78 | DV5: 3 | DX5: 0 | DZ5: 59417.72 | EB5: 8109.28 | ED5: 5822.25 | EF5: 286266.56 | EH5: 17706.77 | EJ5: 9425.08 | EL5: 386747.67 | EM5: 3 | EN5: A | EO5: 1764.71 | EP5: A | EQ5: 0.64 | ER5: A | ES5: 337.51 | ET5: A | EU5: 2177.03 | EV5: A | EW5: 3317.51 | EX5: A | EY5: 2911.59 | EZ5: A | FA5: 10508.99 | FB5: 3 | FD5: 71265.45 | FF5: 0.11 | FH5: 71265.55 | FI5: 3 | FJ5: A | FK5: 6355.84 | FL5: A | FM5: 6355.84 | FN5: 3 | FP5: 25828.59 | FQ5: 3 | FR5: A | FS5: 689.76 | FU5: 0 | FV5: A | FW5: 689.76 | FX5: 3 | FY5: A | FZ5: 101416.46 | GA5: A | GB5: 101416.46 | GC5: 3 | GD5: A | GE5: 3670.61 | GF5: A | GG5: 9.15 | GH5: A | GI5: 3679.76
A6: 4 | B6: B | C6: 397925.31 | D6: B | E6: 10971 | F6: B | G6: 14470.11 | I6: 14314.24 | K6: 59312.37 | L6: B | M6: 21670.56 | N6: B | O6: 6004.5 | P6: B | Q6: 9816.67 | R6: B | S6: 534484.77 | U6: 4 | W6: 1010.79 | X6: AB | Y6: 243.84 | Z6: AB | AA6: 34.76 | AB6: AB | AC6: 1289.39 | CV6: 5974.22 | CX6: 15456.64 | CZ6: 6734.38 | DA6: A | DB6: 827924.07 | DC6: 4 | DD6: A | DE6: 114539.31 | DG6: 3578.79 | DI6: 10742.21 | DK6: 1996.35 | DL6: A | DM6: 27997.6 | DO6: 0 | DQ6: 12580.99 | DS6: 575078.81 | DT6: A | DU6: 746514.06 | DV6: 4 | DX6: 0 | DZ6: 53401.4 | EB6: 7500.14 | ED6: 5280.29 | EF6: 259105.48 | EH6: 16218.04 | EJ6: 8662.32 | EL6: 350167.67 | EM6: 4 | EN6: A | EO6: 1273.85 | EP6: A | EQ6: 0.57 | ER6: A | ES6: 219.09 | ET6: A | EU6: 942.25 | EV6: A | EW6: 2681.2 | EX6: A | EY6: 2138.91 | EZ6: A | FA6: 7255.87 | FB6: 4 | FD6: 12567.21 | FF6: 0 | FH6: 12567.21 | FI6: 4 | FK6: 563.54 | FM6: 563.54 | FN6: 4 | FO6: A | FP6: 12937.09 | FQ6: 4 | FR6: A | FS6: 3541.84 | FU6: 0 | FV6: A | FW6: 3541.84 | FX6: 4 | FY6: A | FZ6: 114267.99 | GA6: A | GB6: 114267.99 | GC6: 4 | GE6: 4336.99 | GG6: 0 | GI6: 4336.99
A7: 5 | B7: B | C7: 384335.41 | D7: B | E7: 10032.3 | F7: B | G7: 13723.88 | I7: 13540.69 | K7: 56389.89 | L7: B | M7: 19910.78 | N7: B | O7: 5715.66 | P7: B | Q7: 9215.5 | R7: B | S7: 512864.11 | U7: 5 | W7: 826.49 | X7: B | Y7: 0 | Z7: B | AA7: 0 | AB7: B | AC7: 826.49 | CV7: 5623.21 | CX7: 16443.2 | CZ7: 6284.01 | DA7: A | DB7: 849581.9 | DC7: 5 | DD7: A | DE7: 121261.67 | DG7: 3477.3 | DI7: 10700.88 | DK7: 2323.19 | DL7: A | DM7: 19616.05 | DO7: 0 | DQ7: 12480.69 | DS7: 599734.56 | DT7: A | DU7: 769594.34 | DV7: 5 | DX7: 0 | DZ7: 52633.82 | EB7: 7082.02 | ED7: 5012.48 | EF7: 253749.45 | EH7: 16165.64 | EJ7: 8723.25 | EL7: 343366.67 | EM7: 5 | EN7: A | EO7: 804.8 | EP7: A | EQ7: 0.37 | ER7: A | ES7: 161.51 | ET7: A | EU7: 1008.38 | EV7: A | EW7: 2213.8 | EX7: A | EY7: 1814.39 | EZ7: A | FA7: 6003.25 | FB7: 5 | FD7: 36767.92 | FF7: 0 | FH7: 36767.92 | FI7: 5 | FJ7: A | FK7: 1659.93 | FL7: A | FM7: 1659.93 | FN7: 5 | FP7: 12967.46 | FQ7: 5 | FR7: A | FS7: 90548.8 | FU7: 0 | FV7: A | FW7: 90548.8 | FX7: 5 | FY7: A | FZ7: 112956.15 | GA7: A | GB7: 112956.15 | GC7: 5 | GE7: 4514.95 | GG7: 0 | GI7: 4514.95
A8: 6 | B8: B | C8: 403955.25 | D8: B | E8: 10315.18 | F8: B | G8: 13959.82 | I8: 13616.08 | K8: 56669.26 | L8: B | M8: 20146.24 | N8: B | O8: 5863.38 | P8: B | Q8: 9513.64 | R8: B | S8: 534038.87 | U8: 6 | W8: 1217.75 | X8: AB | Y8: 170.03 | Z8: AB | AA8: 12.42 | AB8: AB | AC8: 1400.19 | CV8: 5917.56 | CX8: 18565.85 | CZ8: 6748.94 | DA8: A | DB8: 978288.06 | DC8: 6 | DD8: A | DE8: 154951.13 | DG8: 3836.91 | DI8: 12953.53 | DK8: 2132.51 | DL8: A | DM8: 54372.29 | DO8: 0 | DQ8: 13549.58 | DS8: 710755.75 | DT8: A | DU8: 952551.7 | DV8: 6 | DX8: 0 | DZ8: 59487.4 | EB8: 8037.03 | ED8: 5716.18 | EF8: 290614.53 | EH8: 18105.7 | EJ8: 9532.62 | EL8: 391493.46 | EM8: 6 | EN8: A | EO8: 2306.71 | EP8: A | EQ8: 0.4 | ER8: A | ES8: 699.76 | ET8: A | EU8: 2919.05 | EV8: A | EW8: 3064.24 | EX8: A | EY8: 3089.53 | EZ8: A | FA8: 12079.69 | FB8: 6 | FD8: 49968.32 | FF8: 0 | FH8: 49968.32 | FI8: 6 | FJ8: A | FK8: 9074.92 | FL8: A | FM8: 9074.92 | FN8: 6 | FP8: 25120.55 | FQ8: 6 | FR8: A | FS8: 20404.17 | FU8: 0 | FV8: A | FW8: 20404.17 | FX8: 6 | FY8: A | FZ8: 100805.34 | GA8: A | GB8: 100805.34 | GC8: 6 | GD8: A | GE8: 3676.49 | GG8: 0 | GH8: A | GI8: 3676.49
A9: 7 | B9: B | C9: 500163.19 | D9: B | E9: 12496.38 | F9: B | G9: 16651.69 | I9: 16049.96 | K9: 65656.07 | L9: B | M9: 23774.05 | N9: B | O9: 7121.02 | P9: B | Q9: 11121.18 | R9: B | S9: 653033.55 | U9: 7 | W9: 1585.95 | X9: AB | Y9: 483.83 | Z9: AB | AA9: 35.92 | AB9: AB | AC9: 2105.7 | CV9: 7179.43 | CX9: 22563.58 | CZ9: 7797.14 | DA9: A | DB9: 1117871.04 | DC9: 7 | DD9: A | DE9: 176076.61 | DG9: 4296.56 | DI9: 14853.72 | DK9: 2409.43 | DL9: A | DM9: 114292.56 | DN9: A | DO9: 131395.14 | DQ9: 15180.3 | DS9: 771824.63 | DT9: A | DU9: 1230328.95 | DV9: 7 | DX9: 0 | DZ9: 67315.63 | EB9: 9179.72 | ED9: 6501.91 | EF9: 334202.91 | EH9: 20127.31 | EJ9: 10566.81 | EL9: 447894.29 | EM9: 7 | EN9: A | EO9: 2254.71 | EP9: A | EQ9: 3.82 | ER9: A | ES9: 722.76 | ET9: A | EU9: 3379.05 | EV9: A | EW9: 3421.57 | EX9: A | EY9: 3044.27 | EZ9: A | FA9: 12826.18 | FB9: 7 | FD9: 60222.89 | FF9: 0 | FH9: 60222.89 | FI9: 7 | FK9: 9040.72 | FM9: 9040.72 | FN9: 7 | FP9: 32733.01 | FQ9: 7 | FR9: A | FS9: 103843.78 | FU9: 0 | FV9: A | FW9: 103843.78 | FX9: 7 | FY9: A | FZ9: 109775.12 | GA9: A | GB9: 109775.12 | GC9: 7 | GD9: A | GE9: 4453.4 | GG9: 0 | GH9: A | GI9: 4453.4
A10: 8 | B10: B | C10: 535653.94 | D10: B | E10: 13617.25 | F10: B | G10: 17602.67 | I10: 17510.29 | K10: 72749.36 | L10: B | M10: 26059.06 | N10: B | O10: 7753.53 | P10: B | Q10: 12037.82 | R10: B | S10: 702983.92 | U10: 8 | W10: 1432.4 | X10: AB | Y10: 349.14 | Z10: AB | AA10: 37.68 | AB10: AB | AC10: 1819.23 | CV10: 7604.62 | CW10: B | CX10: 23090.69 | CY10: B | CZ10: 8538.38 | DA10: AB | DB10: 1170237.16 | DC10: 8 | DD10: B | DE10: 188049.66 | DF10: B | DG10: 4592.56 | DH10: B | DI10: 15894.7 | DJ10: B | DK10: 2536.69 | DL10: AB | DM10: 49194.02 | DN10: AB | DO10: 198824.88 | DP10: B | DQ10: 15994.3 | DR10: B | DS10: 824243.13 | DT10: AB | DU10: 1299329.93 | DV10: 8 | DW10: B | DX10: 0 | DY10: B | DZ10: 70600.77 | EA10: B | EB10: 9664.64 | EC10: B | ED10: 6931.18 | EE10: B | EF10: 354245.34 | EG10: B | EH10: 21491.1 | EI10: B | EJ10: 11118.05 | EK10: B | EL10: 474051.09 | EM10: 8 | EN10: AB | EO10: 3062.52 | EP10: AB | EQ10: 16.19 | ER10: AB | ES10: 457.56 | ET10: AB | EU10: 3620.98 | EV10: AB | EW10: 3483.87 | EX10: AB | EY10: 3036.21 | EZ10: AB | FA10: 13677.33 | FB10: 8 | FC10: B | FD10: 85760.49 | FE10: B | FF10: 0.01 | FG10: B | FH10: 85760.5 | FI10: 8 | FJ10: ABC | FK10: 10292.74 | FL10: ABC | FM10: 10292.74 | FN10: 8 | FO10: B | FP10: 35295.93 | FQ10: 8 | FR10: AB | FS10: 36263.18 | FT10: B | FU10: 0 | FV10: AB | FW10: 36263.18 | FX10: 8 | FY10: AB | FZ10: 126175.06 | GA10: AB | GB10: 126175.06 | GC10: 8 | GD10: AB | GE10: 3405.11 | GF10: B | GG10: 0 | GH10: AB | GI10: 3405.11
A11: 9 | B11: B | C11: 533481.56 | D11: B | E11: 13434.92 | F11: B | G11: 18126.1 | I11: 17367.05 | K11: 72772.04 | L11: B | M11: 25942.71 | N11: B | O11: 7717.68 | P11: B | Q11: 12029.15 | R11: B | S11: 700871.22 | U11: 9 | W11: 1249.41 | X11: AB | Y11: 349.96 | Z11: AB | AA11: 48.55 | AB11: AB | AC11: 1647.92 | CV11: 7553.07 | CX11: 22442.08 | CZ11: 8810.43 | DA11: A | DB11: 1153037.31 | DC11: 9 | DE11: 182721.53 | DG11: 4541.81 | DI11: 14781.7 | DK11: 2497.6 | DL11: A | DM11: 24234.03 | DN11: A | DO11: 33609.58 | DQ11: 15593.8 | DS11: 806750.38 | DT11: A | DU11: 1084730.43 | DV11: 9 | DW11: A | DX11: 0 | DY11: A | DZ11: 69934.56 | EB11: 9343.89 | ED11: 6838.53 | EF11: 350379.06 | EH11: 21091.24 | EJ11: 11008.69 | EK11: A | EL11: 468595.96 | EM11: 9 | EN11: A | EO11: 2594.69 | EP11: A | EQ11: 43.62 | ER11: A | ES11: 775.81 | ET11: A | EU11: 3430.02 | EV11: A | EW11: 3279.1 | EX11: A | EY11: 2687.28 | EZ11: A | FA11: 12810.51 | FB11: 9 | FD11: 57323.46 | FF11: 0 | FH11: 57323.46 | FI11: 9 | FK11: 10422.08 | FM11: 10422.08 | FN11: 9 | FP11: 36316.42 | FQ11: 9 | FR11: A | FS11: 19258.02 | FU11: 0 | FV11: A | FW11: 19258.02 | FX11: 9 | FY11: A | FZ11: 122398.23 | GA11: A | GB11: 122398.23 | GC11: 9 | GE11: 4694.11 | GG11: 0 | GI11: 4694.11
A12: 10 | B12: B | C12: 533283.25 | D12: B | E12: 13320.5 | F12: B | G12: 18107.54 | I12: 17359.23 | K12: 72501.19 | L12: B | M12: 26132.03 | N12: B | O12: 7680.79 | P12: B | Q12: 12057.83 | R12: B | S12: 700442.35 | U12: 10 | W12: 1076.95 | X12: AB | Y12: 279.41 | Z12: AB | AA12: 48.52 | AB12: AB | AC12: 1404.88 | CV12: 7533 | CX12: 22594.11 | CZ12: 8806.75 | DA12: A | DB12: 1135706.7 | DC12: 10 | DE12: 170924.52 | DG12: 4322.84 | DI12: 14012.61 | DK12: 2347.16 | DL12: A | DM12: 17899.08 | DN12: A | DO12: 35232.48 | DQ12: 15000.22 | DS12: 753400.56 | DT12: A | DU12: 1013139.48 | DV12: 10 | DX12: 0 | DZ12: 66937.95 | EB12: 8880.15 | ED12: 6280.07 | EF12: 324903.09 | EH12: 19842.46 | EJ12: 10395.37 | EL12: 437239.08 | EM12: 10 | EN12: A | EO12: 1957.63 | EP12: A | EQ12: 30.83 | ER12: A | ES12: 520.14 | ET12: A | EU12: 3056.78 | EV12: A | EW12: 3676.88 | EX12: A | EY12: 2762.7 | EZ12: A | FA12: 12004.94 | FB12: 10 | FD12: 61350.63 | FF12: 0 | FH12: 61350.63 | FI12: 10 | FJ12: A | FK12: 7384.39 | FL12: A | FM12: 7384.39 | FN12: 10 | FP12: 33244.33 | FQ12: 10 | FR12: A | FS12: 4013.37 | FU12: 0 | FV12: A | FW12: 4013.37 | FX12: 10 | FY12: A | FZ12: 106749.32 | GA12: A | GB12: 106749.32 | GC12: 10 | GD12: A | GE12: 1307 | GG12: 0 | GH12: A | GI12: 1307
A13: 11 | B13: B | C13: 497728.53 | D13: B | E13: 13155.19 | F13: B | G13: 17142.13 | I13: 17246.84 | K13: 71982.12 | L13: B | M13: 25868.1 | N13: B | O13: 7406.93 | P13: B | Q13: 12031.47 | R13: B | S13: 662561.3 | U13: 11 | W13: 972.54 | X13: AB | Y13: 294.96 | Z13: AB | AA13: 38.4 | AB13: AB | AC13: 1305.9 | CV13: 7210.81 | CX13: 21217.04 | CZ13: 8373.05 | DA13: A | DB13: 1038369.01 | DC13: 11 | DE13: 151513.19 | DG13: 4009.99 | DI13: 12232.95 | DK13: 2271.05 | DL13: A | DM13: 12260.17 | DO13: 0 | DQ13: 14199.63 | DS13: 688754.69 | DT13: A | DU13: 885241.67 | DV13: 11 | DX13: 0 | DZ13: 60147.55 | EA13: A | EB13: 7986.8 | ED13: 5477.79 | EF13: 287253.66 | EH13: 17753.46 | EJ13: 9286.25 | EK13: A | EL13: 387905.51 | EM13: 11 | EN13: A | EO13: 372.08 | EP13: A | EQ13: 10.29 | ER13: A | ES13: 176.95 | ET13: A | EU13: 1631.93 | EV13: A | EW13: 2996.81 | EX13: A | EY13: 2116.83 | EZ13: A | FA13: 7304.88 | FB13: 11 | FD13: 11933.33 | FF13: 0 | FH13: 11933.33 | FI13: 11 | FK13: 6000.08 | FM13: 6000.08 | FN13: 11 | FP13: 21350.54 | FQ13: 11 | FR13: A | FS13: 45568.17 | FU13: 0 | FV13: A | FW13: 45568.17 | FX13: 11 | FY13: A | FZ13: 117351.54 | GA13: A | GB13: 117351.54 | GC13: 11 | GD13: A | GE13: 1432.8 | GG13: 0 | GH13: A | GI13: 1432.8
A14: 12 | B14: B | C14: 464983.84 | D14: B | E14: 12215.05 | F14: B | G14: 16713.25 | I14: 16257.29 | K14: 68539.63 | L14: B | M14: 24592.67 | N14: B | O14: 6958.9 | P14: B | Q14: 11334.66 | R14: B | S14: 621595.29 | U14: 12 | W14: 562.94 | X14: AB | Y14: 211.1 | Z14: AB | AA14: 36.73 | AB14: AB | AC14: 810.77 | CV14: 6658.3 | CX14: 19517.28 | CZ14: 7801.83 | DA14: A | DB14: 992517.4 | DC14: 12 | DE14: 143172.14 | DG14: 3888.93 | DI14: 11334.82 | DK14: 2170.09 | DL14: A | DM14: 14607.7 | DO14: 0 | DQ14: 13598.14 | DS14: 658447.25 | DT14: A | DU14: 847219.06 | DV14: 12 | DX14: 0 | DZ14: 57397.21 | EB14: 7687.84 | ED14: 5208.03 | EF14: 273531.25 | EH14: 16434.5 | EJ14: 8690.5 | EL14: 368949.34 | EM14: 12 | EN14: A | EO14: 491.41 | EP14: A | EQ14: 3.68 | ER14: A | ES14: 118.24 | ET14: A | EU14: 1213.1 | EV14: A | EW14: 2500.86 | EX14: A | EY14: 1621.24 | EZ14: A | FA14: 5948.52 | FB14: 12 | FD14: 11746.07 | FF14: 0 | FH14: 11746.07 | FI14: 12 | FK14: 4690.85 | FM14: 4690.85 | FN14: 12 | FP14: 17529.5 | FQ14: 12 | FR14: A | FS14: 34068.24 | FU14: 0 | FV14: A | FW14: 34068.24 | FX14: 12 | FY14: A | FZ14: 112512.53 | GA14: A | GB14: 112512.53 | GC14: 12 | GD14: A | GE14: 1298.21 | GG14: 0 | GH14: A | GI14: 1298.21
A15: 13 | C15: 447309.53 | E15: 11534.96 | G15: 15839.99 | I15: 15619.9 | K15: 64958.71 | M15: 22973.69 | O15: 6663.2 | Q15: 10796.51 | S15: 595696.48 | U15: 13 | W15: 1131.85 | X15: A | Y15: 292.27 | Z15: A | AA15: 23.75 | AB15: A | AC15: 1447.87 | CV15: 6378.97 | CX15: 18904.54 | CZ15: 7477.21 | DA15: A | DB15: 963618.48 | DC15: 13 | DD15: A | DE15: 138933.84 | DG15: 3685.49 | DI15: 11834.47 | DJ15: A | DK15: 2056.79 | DL15: A | DM15: 38955.65 | DO15: 0 | DQ15: 13045.64 | DS15: 641269.19 | DT15: A | DU15: 849781.07 | DV15: 13 | DX15: 0 | DZ15: 56768.2 | EB15: 7555.5 | ED15: 5079.85 | EF15: 265832.16 | EH15: 16442.27 | EJ15: 8653.4 | EL15: 360331.37 | EM15: 13 | EN15: A | EO15: 1652.58 | EP15: A | EQ15: 5.72 | ER15: A | ES15: 350.55 | ET15: A | EU15: 2448.83 | EV15: A | EW15: 2521.99 | EX15: A | EY15: 2689.8 | EZ15: A | FA15: 9669.47 | FB15: 13 | FD15: 46254.68 | FF15: 0 | FH15: 46254.69 | FI15: 13 | FK15: 11390.14 | FM15: 11390.14 | FN15: 13 | FP15: 25282.26 | FQ15: 13 | FR15: A | FS15: 60257.66 | FU15: 0 | FV15: A | FW15: 60257.66 | FX15: 13 | FY15: A | FZ15: 117195.34 | GA15: A | GB15: 117195.34 | GC15: 13 | GE15: 1297.62 | GG15: 0 | GI15: 1297.62
A16: 14 | B16: A C | C16: 475279,38* | D16: B | E16: 12421.3 | F16: B | G16: 16331.52 | I16: 16328.05 | K16: 68025.51 | L16: B | M16: 24618.81 | N16: B | O16: 7039.07 | P16: B | Q16: 11189.63 | R16: ABC | S16: 631233,26* | U16: 14 | W16: 1242.98 | X16: AB | Y16: 141.76 | Z16: AB | AA16: 12.27 | AB16: AB | AC16: 1397.01 | CV16: 6601.59 | CX16: 19328.13 | CZ16: 7676.69 | DA16: A | DB16: 974075.57 | DC16: 14 | DD16: A | DE16: 134597.91 | DF16: A | DG16: 3840.54 | DI16: 11544.26 | DK16: 2082.83 | DL16: A | DM16: 78609.98 | DO16: 0 | DQ16: 13207.1 | DS16: 648565.94 | DT16: A | DU16: 892448.55 | DV16: 14 | DX16: 0 | DZ16: 58457.16 | EB16: 8049.53 | ED16: 5427.86 | EE16: ABC | EF16: 277665.06 | EH16: 17625.98 | EJ16: 9168.89 | EK16: ABC | EL16: 376394,47* | EM16: 14 | EN16: A | EO16: 3159.51 | EP16: A | EQ16: 5.75 | ER16: A | ES16: 742.05 | ET16: A | EU16: 2546.08 | EV16: A | EW16: 2249.58 | EX16: A | EY16: 2333.38 | EZ16: A | FA16: 11036.35 | FB16: 14 | FD16: 128219.78 | FF16: 18.9 | FH16: 128238.68 | FI16: 14 | FK16: 8429.28 | FM16: 8429.28 | FN16: 14 | FP16: 26646.19 | FQ16: 14 | FR16: A | FS16: 268.97 | FU16: 0 | FV16: A | FW16: 268.97 | FX16: 14 | FY16: A | FZ16: 102700.65 | GA16: A | GB16: 102700.65 | GC16: 14 | GE16: 1287.97 | GG16: 0 | GI16: 1287.97
A17: 15 | B17: B | C17: 428212.38 | D17: B | E17: 11274.92 | F17: B | G17: 15389.43 | I17: 15356.44 | K17: 64135.38 | L17: B | M17: 22626.53 | N17: B | O17: 6481.11 | P17: B | Q17: 10529.28 | R17: B | S17: 574005.47 | U17: 15 | W17: 1308.28 | X17: AB | Y17: 420.44 | Z17: AB | AA17: 37.56 | AB17: AB | AC17: 1766.28 | CV17: 6201.94 | CX17: 17525.29 | CZ17: 7201.82 | DA17: A | DB17: 896361.59 | DC17: 15 | DD17: A | DE17: 124581.37 | DG17: 3653.11 | DI17: 11442.23 | DK17: 1964.47 | DL17: A | DM17: 12565.29 | DO17: 0 | DQ17: 12596.76 | DR17: A C | DS17: 592538.63 | DT17: A C | DU17: 759341,86* | DV17: 15 | DX17: 0 | DZ17: 55370.9 | EB17: 7676.31 | ED17: 5303.73 | EF17: 267355.16 | EH17: 16576.8 | EJ17: 8680.68 | EL17: 360963.58 | EM17: 15 | EN17: A | EO17: 1949.16 | EP17: A | EQ17: 5.59 | ER17: A | ES17: 427.06 | ET17: A | EU17: 4698.76 | EV17: A | EW17: 2001.21 | EX17: A | EY17: 1797.87 | EZ17: A | FA17: 10879.66 | FB17: 15 | FD17: 130244.2 | FF17: 20.53 | FH17: 130264.73 | FI17: 15 | FK17: 4813.43 | FM17: 4813.43 | FN17: 15 | FP17: 22802.01 | FQ17: 15 | FR17: A | FS17: 3838.99 | FU17: 0 | FV17: A | FW17: 3838.99 | FX17: 15 | FY17: A | FZ17: 108764.16 | GA17: A | GB17: 108764.16 | GC17: 15 | GD17: A | GE17: 1206.92 | GF17: A | GG17: 15.29 | GH17: A | GI17: 1222.21
A18: 16 | B18: B | C18: 441647 | D18: B | E18: 11240.23 | F18: B | G18: 15458.53 | I18: 15212.71 | K18: 62777.36 | L18: B | M18: 22312.18 | N18: B | O18: 6555.41 | P18: B | Q18: 10659.84 | R18: B | S18: 585863.27 | U18: 16 | W18: 1215.54 | X18: AB | Y18: 456.84 | Z18: AB | AA18: 36.99 | AB18: AB | AC18: 1709.37 | CV18: 6579.55 | CW18: B | CX18: 20216.32 | CY18: B | CZ18: 7396.64 | DA18: ABC | DB18: 1013924,18* | DC18: 16 | DD18: B | DE18: 150093.36 | DF18: B | DG18: 3721.22 | DH18: B | DI18: 12627.02 | DJ18: B | DK18: 2058.36 | DL18: AB | DM18: 18670.63 | DN18: B | DO18: 0 | DP18: B | DQ18: 13027.76 | DR18: B | DS18: 674265.5 | DT18: AB | DU18: 874463.85 | DV18: 16 | DW18: B | DX18: 0 | DY18: B | DZ18: 56889.07 | EA18: B | EB18: 7727.5 | EC18: B | ED18: 5395.75 | EE18: B | EF18: 274561.97 | EG18: B | EH18: 17076.28 | EI18: B | EJ18: 8786.8 | EK18: B | EL18: 370437.36 | EM18: 16 | EN18: AB | EO18: 1712.12 | EP18: AB | EQ18: 29.56 | ER18: AB | ES18: 256.41 | ET18: AB | EU18: 2648.03 | EV18: AB | EW18: 2229.63 | EX18: AB | EY18: 1979.4 | EZ18: AB | FA18: 8855.14 | FB18: 16 | FC18: B | FD18: 117153.64 | FE18: B | FF18: 2.92 | FG18: B | FH18: 117156.56 | FI18: 16 | FJ18: B | FK18: 8657.52 | FL18: B | FM18: 8657.52 | FN18: 16 | FO18: B | FP18: 27378.49 | FQ18: 16 | FR18: AB | FS18: 303.9 | FT18: B | FU18: 0 | FV18: AB | FW18: 303.9 | FX18: 16 | FY18: AB | FZ18: 105339.63 | GA18: AB | GB18: 105339.63 | GC18: 16 | GD18: AB | GE18: 1123.21 | GF18: AB | GG18: 0.22 | GH18: AB | GI18: 1123.44
A19: 17 | B19: B | C19: 426372.81 | D19: B | E19: 11154.39 | F19: B | G19: 15531.3 | I19: 15075.22 | K19: 63123.59 | L19: B | M19: 22073.97 | N19: B | O19: 6583.62 | P19: B | Q19: 10588.34 | R19: B | S19: 570503.23 | U19: 17 | W19: 1028.44 | X19: AB | Y19: 285.2 | Z19: AB | AA19: 25.53 | AB19: AB | AC19: 1339.17 | CV19: 6462.44 | CX19: 19072.4 | CZ19: 7313.9 | DA19: AB | DB19: 954949.93 | DC19: 17 | DD19: A | DE19: 137545.53 | DG19: 3847.7 | DI19: 11664.3 | DJ19: A | DK19: 2064.37 | DM19: 24352.3 | DO19: 0 | DQ19: 13376.93 | DS19: 655817.5 | DT19: A | DU19: 848668.63 | DV19: 17 | DX19: 0 | DZ19: 58184.44 | EB19: 7952.62 | ED19: 5630 | EF19: 282334.34 | EH19: 17749.04 | EJ19: 9064.07 | EL19: 380914.51 | EM19: 17 | EN19: A C | EO19: 1788.71 | EP19: A | EQ19: 100.36 | ER19: A | ES19: 462.99 | ET19: A | EU19: 2483.75 | EV19: A | EW19: 2317.53 | EX19: A | EY19: 1779.37 | EZ19: A C | FA19: 8932.72 | FB19: 17 | FD19: 113698.46 | FF19: 7.87 | FH19: 113706.33 | FI19: 17 | FK19: 6727.04 | FM19: 6727.04 | FN19: 17 | FP19: 29198.98 | FQ19: 17 | FR19: A | FS19: 88244.7 | FU19: 0 | FV19: A | FW19: 88244.7 | FX19: 17 | FY19: A | FZ19: 116653.25 | GA19: A | GB19: 116653.25 | GC19: 17 | GE19: 1319.17 | GG19: 0 | GI19: 1319.17
A20: 18 | B20: B | C20: 399893.72 | D20: B | E20: 10489.05 | F20: B | G20: 14601.9 | I20: 14345.11 | K20: 59134.16 | L20: B | M20: 20867.13 | N20: B | O20: 6115.67 | P20: B | Q20: 10106.74 | R20: B | S20: 535553.48 | U20: 18 | W20: 866.36 | X20: AB | Y20: 171.95 | Z20: AB | AA20: 13.18 | AB20: AB | AC20: 1051.49 | CV20: 6010.36 | CX20: 16603.24 | CZ20: 6901.8 | DA20: A | DB20: 854291.05 | DC20: 18 | DD20: A | DE20: 116184.25 | DG20: 3622.99 | DI20: 10264.04 | DK20: 1952.08 | DL20: A | DM20: 9607.9 | DO20: 0 | DQ20: 12565.84 | DS20: 613463.5 | DT20: A | DU20: 767660.6 | DV20: 18 | DX20: 0 | DZ20: 53000.72 | EA20: A | EB20: 7332.05 | ED20: 5113.12 | EF20: 254805.92 | EH20: 16150.22 | EJ20: 8371.47 | EK20: A | EL20: 344773.5 | EM20: 18 | EN20: A | EO20: 1441.75 | EP20: A | EQ20: 49.75 | ER20: A | ES20: 291.89 | ET20: A | EU20: 1458.98 | EV20: A | EW20: 1868.24 | EX20: A | EY20: 1337.6 | EZ20: A | FA20: 6448.21 | FB20: 18 | FC20: A | FD20: 6693.06 | FF20: 0 | FG20: A | FH20: 6693.06 | FI20: 18 | FJ20: A | FK20: 1064.6 | FL20: A | FM20: 1064.6 | FN20: 18 | FP20: 17263.68 | FQ20: 18 | FR20: A | FS20: 2480.91 | FU20: 0 | FV20: A | FW20: 2480.91 | FX20: 18 | FY20: A | FZ20: 100269.6 | GA20: A | GB20: 100269.6 | GC20: 18 | GE20: 1266.35 | GG20: 0 | GI20: 1266.35
A21: 19 | B21: B | C21: 375352.28 | D21: B | E21: 9821.26 | F21: B | G21: 13718.98 | I21: 13242.75 | K21: 54667.55 | L21: B | M21: 19471.95 | N21: B | O21: 5636.28 | P21: B | Q21: 9409.56 | R21: B | S21: 501320.61 | U21: 19 | W21: 615.5 | X21: AB | Y21: 109.13 | Z21: AB | AA21: 12.23 | AB21: AB | AC21: 736.86 | CV21: 5518.05 | CX21: 14755.4 | CZ21: 6293.53 | DA21: A | DB21: 797276.62 | DC21: 19 | DE21: 108064.38 | DF21: A | DG21: 3274.21 | DI21: 9419.49 | DK21: 1803.18 | DL21: A | DM21: 8800.59 | DO21: 0 | DQ21: 11849.94 | DS21: 556225.75 | DT21: A | DU21: 699437.55 | DV21: 19 | DX21: 0 | DZ21: 49240.71 | EB21: 6876.13 | ED21: 4684.97 | EF21: 239424.19 | EH21: 15017.99 | EJ21: 8020.47 | EL21: 323264.46 | EM21: 19 | EN21: A | EO21: 1068.25 | EP21: A | EQ21: 37.82 | ER21: A | ES21: 209.35 | ET21: A | EU21: 1270.72 | EV21: A | EW21: 1333.21 | EX21: A | EY21: 1263.29 | EZ21: A | FA21: 5182.64 | FB21: 19 | FD21: 2094.61 | FF21: 0 | FH21: 2094.61 | FI21: 19 | FJ21: A | FK21: 7196.73 | FL21: A | FM21: 7196.73 | FN21: 19 | FP21: 13680.66 | FQ21: 19 | FR21: A | FS21: 39332.63 | FU21: 0 | FV21: A | FW21: 39332.63 | FX21: 19 | FY21: A | FZ21: 106545.12 | GA21: A | GB21: 106545.12 | GC21: 19 | GE21: 1255.76 | GG21: 0 | GI21: 1255.76
A22: 20 | C22: 360547.25 | E22: 9389.35 | F22: A | G22: 12655.21 | I22: 12709.32 | K22: 53503.75 | M22: 18419.04 | O22: 5296.3 | Q22: 8670.76 | R22: A | S22: 481190.99 | U22: 20 | W22: 1209.29 | X22: A | Y22: 314.39 | Z22: A | AA22: 25.55 | AB22: A | AC22: 1549.22 | CV22: 4784.63 | CX22: 13486.65 | CZ22: 5540.83 | DA22: A | DB22: 735329.5 | DC22: 20 | DD22: A | DE22: 106817.87 | DF22: A | DG22: 3024.43 | DI22: 9273.89 | DJ22: A | DK22: 1658.34 | DL22: A | DM22: 8951.5 | DO22: 0 | DQ22: 11041.4 | DS22: 555207.75 | DT22: A | DU22: 695975.18 | DV22: 20 | DX22: 0 | DZ22: 45508.05 | EB22: 6409.49 | ED22: 4403.1 | EF22: 218279.78 | EH22: 14071.12 | EJ22: 7502.93 | EL22: 296174.47 | EM22: 20 | EN22: A | EO22: 1571.38 | EP22: A | EQ22: 22.42 | ER22: A | ES22: 373.77 | ET22: A | EU22: 2524.55 | EV22: A | EW22: 1718.58 | EX22: A | EY22: 1608.6 | EZ22: A | FA22: 7819.31 | FB22: 20 | FC22: A | FD22: 103489.73 | FF22: 13.85 | FG22: A | FH22: 103503.57 | FI22: 20 | FK22: 6509.02 | FM22: 6509.02 | FN22: 20 | FP22: 21149.7 | FQ22: 20 | FR22: A | FS22: 51708.48 | FU22: 0 | FV22: A | FW22: 51708.48 | FX22: 20 | FY22: A | FZ22: 108473.1 | GA22: A | GB22: 108473.1 | GC22: 20 | GD22: A | GE22: 961.93 | GF22: A | GG22: 1.23 | GH22: A | GI22: 963.17
A23: 21 | C23: 362526.28 | E23: 9431.14 | G23: 12618.43 | I23: 12592.14 | K23: 52389.27 | M23: 18595.25 | O23: 5462.98 | Q23: 8814.83 | S23: 482430.32 | U23: 21 | W23: 1401.12 | X23: A | Y23: 292.34 | Z23: A | AA23: 25.68 | AB23: A | AC23: 1719.14 | CV23: 4924.82 | CX23: 14339.72 | CZ23: 5896.31 | DA23: A | DB23: 744767.91 | DC23: 21 | DD23: A | DE23: 102794.82 | DG23: 3078.19 | DI23: 8877.77 | DK23: 1656.2 | DL23: A | DM23: 4024.01 | DO23: 0 | DQ23: 10783.65 | DS23: 536679.31 | DT23: A | DU23: 667893.95 | DV23: 21 | DX23: 0 | DZ23: 45190.3 | EB23: 6407.35 | ED23: 4337.69 | EF23: 214596.5 | EH23: 14028.45 | EJ23: 7583.67 | EL23: 292143.96 | EM23: 21 | EN23: A | EO23: 2044.93 | EP23: A | EQ23: 8.87 | ER23: A | ES23: 550.13 | ET23: A | EU23: 1916.4 | EV23: A | EW23: 2120.66 | EX23: A | EY23: 1758.18 | EZ23: A | FA23: 8399.18 | FB23: 21 | FD23: 130458.14 | FF23: 26.92 | FH23: 130485.06 | FI23: 21 | FK23: 3810.48 | FM23: 3810.48 | FN23: 21 | FP23: 20222.11 | FQ23: 21 | FR23: ABC | FS23: 81527.74 | FT23: ABC | FU23: 0 | FV23: ABC | FW23: 81527.74 | FX23: 21 | FY23: A | FZ23: 101377.01 | GA23: A | GB23: 101377.01 | GC23: 21 | GE23: 0 | GF23: A | GG23: 0.09 | GH23: A | GI23: 0.09
A24: 22 | C24: 370704.03 | E24: 9458.84 | G24: 12530.44 | I24: 12809.97 | K24: 52982.82 | L24: A | M24: 18546.76 | O24: 5386.15 | Q24: 8798.77 | R24: A | S24: 491217.77 | U24: 22 | W24: 1130.58 | X24: A | Y24: 211.74 | Z24: A | AA24: 12.84 | AB24: A | AC24: 1355.16 | CV24: 5051.24 | CX24: 14700.74 | CZ24: 5849.99 | DA24: ABC | DB24: 748291,11* | DC24: 22 | DD24: A | DE24: 102911.37 | DG24: 2988.78 | DI24: 8917.3 | DK24: 3062.6 | DM24: 0 | DO24: 0 | DQ24: 10580.65 | DS24: 552439.69 | DT24: A | DU24: 680900.39 | DV24: 22 | DX24: 0 | DZ24: 44614.89 | EB24: 6274.16 | ED24: 4222.17 | EF24: 209605.22 | EH24: 13417.69 | EJ24: 7366.89 | EL24: 285501.01 | EM24: 22 | EN24: A | EO24: 1850.17 | EP24: A | EQ24: 25.08 | ER24: A | ES24: 853.08 | ET24: A | EU24: 1992.04 | EV24: A | EW24: 1966.69 | EX24: A | EY24: 2028.44 | EZ24: A | FA24: 8715.5 | FB24: 22 | FC24: A | FD24: 5737.3 | FE24: A | FF24: 147183.53 | FG24: A | FH24: 152920.83 | FI24: 22 | FK24: 3412.11 | FM24: 3412.11 | FN24: 22 | FP24: 19047.92 | FQ24: 22 | FR24: A | FS24: 99906.57 | FU24: 0 | FV24: A | FW24: 99906.57 | FX24: 22 | FY24: A | FZ24: 111528.38 | GA24: A | GB24: 111528.38 | GC24: 22 | GD24: A | GE24: 1140.09 | GG24: 0 | GH24: A | GI24: 1140.09
A25: 23 | C25: 368008.31 | E25: 9615.45 | G25: 12883.9 | I25: 12882.29 | K25: 53172.94 | M25: 18766.34 | O25: 5445.94 | P25: A C | Q25: 8838,84* | R25: A C | S25: 489614,00* | U25: 23 | W25: 1092.42 | X25: A | Y25: 376.09 | Z25: A | AA25: 37.08 | AB25: A | AC25: 1505.59 | CV25: 5139.73 | CX25: 14387.92 | CZ25: 5979.96 | DA25: A | DB25: 745919.45 | DC25: 23 | DD25: A | DE25: 103318.35 | DG25: 3095.2 | DI25: 9378.75 | DK25: 3442.81 | DL25: A | DM25: 2136.69 | DO25: 0 | DQ25: 10573.93 | DS25: 548427.69 | DT25: A | DU25: 680373.41 | DV25: 23 | DX25: 0 | DZ25: 45354.29 | EB25: 6603.41 | ED25: 4361.23 | EF25: 213479.77 | EH25: 13894.66 | EJ25: 7479.2 | EL25: 291172.56 | EM25: 23 | EN25: A | EO25: 1660.33 | EP25: A | EQ25: 1.91 | ER25: A | ES25: 462.17 | ET25: A | EU25: 2098.94 | EV25: A | EW25: 1835.79 | EX25: A | EY25: 1703.92 | EZ25: A | FA25: 7763.06 | FB25: 23 | FD25: 0.02 | FF25: 117590.2 | FH25: 117590.22 | FI25: 23 | FK25: 4492.01 | FM25: 4492.01 | FN25: 23 | FP25: 19309.37 | FQ25: 23 | FR25: A | FS25: 40624.32 | FT25: A | FU25: 0 | FV25: A | FW25: 40624.32 | FX25: 23 | FY25: ABC | FZ25: 100012.16 | GA25: ABC | GB25: 100012.16 | GC25: 23 | GD25: A | GE25: 1093.97 | GG25: 0 | GH25: A | GI25: 1093.97
A26: 24 | B26: B | C26: 338021.41 | D26: B | E26: 8726.49 | F26: B | G26: 12038.79 | I26: 12735.42 | K26: 48023.5 | L26: B | M26: 17514.45 | N26: B | O26: 4996.65 | P26: B | Q26: 8299.31 | R26: B | S26: 450356.02 | U26: 24 | W26: 1132.42 | X26: AB | Y26: 296.51 | Z26: AB | AA26: 25.31 | AB26: AB | AC26: 1454.24 | CV26: 4789.15 | CW26: B | CX26: 12268.52 | CY26: B | CZ26: 5630.57 | DA26: AB | DB26: 655920.46 | DC26: 24 | DD26: B | DE26: 88078.05 | DF26: B | DG26: 2891.96 | DH26: B | DI26: 8072.55 | DJ26: B | DK26: 3099.83 | DL26: AB | DM26: 37571.92 | DN26: B | DO26: 0 | DP26: B | DQ26: 9927.29 | DR26: B | DS26: 483851.53 | DT26: AB | DU26: 633493.14 | DV26: 24 | DW26: B | DX26: 0 | DY26: B | DZ26: 39780.78 | EA26: B | EB26: 6063.57 | EC26: B | ED26: 3999.86 | EE26: B | EF26: 188907.34 | EG26: B | EH26: 12596.79 | EI26: B | EJ26: 6976.43 | EK26: B | EL26: 258324.78 | EM26: 24 | EN26: AB | EO26: 1628.05 | EP26: AB | EQ26: 2.08 | ER26: AB | ES26: 402 | ET26: ABC | EU26: 2150.69 | EV26: AB | EW26: 1852.1 | EX26: AB | EY26: 1844.12 | EZ26: ABC | FA26: 7879.03 | FB26: 24 | FC26: B | FD26: 0 | FE26: B | FF26: 98923.49 | FG26: B | FH26: 98923.5 | FI26: 24 | FJ26: AB | FK26: 2341.03 | FL26: AB | FM26: 2341.03 | FN26: 24 | FO26: B | FP26: 18453.87 | FQ26: 24 | FR26: AB | FS26: 5595.81 | FT26: B | FU26: 0 | FV26: AB | FW26: 5595.81 | FX26: 24 | FY26: AB | FZ26: 92020.65 | GA26: AB | GB26: 92020.65 | GC26: 24 | GD26: AB | GE26: 1144.83 | GF26: AB | GG26: 0.29 | GH26: AB | GI26: 1145.12
A27: 25 | B27: B | C27: 355473.22 | D27: B | E27: 8890.55 | F27: B | G27: 12551.83 | I27: 12366.54 | K27: 50066.26 | L27: B | M27: 18061.07 | N27: B | O27: 5133.08 | P27: B | Q27: 8440.57 | R27: B | S27: 470983.11 | U27: 25 | W27: 1158.81 | X27: AB | Y27: 183.84 | Z27: AB | AA27: 12.85 | AB27: AB | AC27: 1355.5 | CV27: 5093.39 | CX27: 14664.34 | CZ27: 5801.53 | DA27: A | DB27: 763682.11 | DC27: 25 | DD27: A | DE27: 106490.81 | DG27: 3039.47 | DI27: 9613.94 | DK27: 2567.09 | DM27: 113014.34 | DO27: 0 | DQ27: 10235.71 | DS27: 549342.19 | DT27: A | DU27: 794303.55 | DV27: 25 | DX27: 0 | DZ27: 44620.14 | EB27: 6094.1 | ED27: 4256.5 | EF27: 203892.44 | EH27: 13348.64 | EJ27: 7163.11 | EL27: 279374.93 | EM27: 25 | EN27: A | EO27: 1668.02 | EP27: A | EQ27: 8.7 | ER27: A | ES27: 147.76 | ET27: A | EU27: 1151.95 | EV27: A | EW27: 2135.66 | EX27: A | EY27: 1502.4 | EZ27: A | FA27: 6614.48 | FB27: 25 | FD27: 0 | FE27: A | FF27: 3406.31 | FG27: A | FH27: 3406.31 | FI27: 25 | FJ27: A | FK27: 1289.67 | FL27: A | FM27: 1289.67 | FN27: 25 | FP27: 11980.84 | FQ27: 25 | FR27: A | FS27: 39302.46 | FU27: 0 | FV27: A | FW27: 39302.46 | FX27: 25 | FY27: A | FZ27: 106434.78 | GA27: A | GB27: 106434.78 | GC27: 25 | GD27: A | GE27: 442.93 | GF27: A | GG27: 1.27 | GH27: A | GI27: 444.2
A28: 26 | B28: B | C28: 356419.75 | D28: B | E28: 9008.39 | G28: 12477.75 | I28: 12396.96 | K28: 50340.63 | L28: B | M28: 18162.91 | N28: B | O28: 5264.02 | P28: B | Q28: 8504.16 | R28: B | S28: 472574.55 | U28: 26 | W28: 716.11 | X28: AB | Y28: 0.08 | Z28: B | AA28: 0 | AB28: AB | AC28: 716.19 | CV28: 5288.24 | CX28: 15066.76 | CZ28: 6029.92 | DA28: A | DB28: 784558.82 | DC28: 26 | DD28: A | DE28: 111099.6 | DG28: 3216.14 | DI28: 9808.42 | DK28: 1656.28 | DM28: 118342.62 | DO28: 0 | DQ28: 10748.09 | DS28: 558620.5 | DT28: A | DU28: 813491.65 | DV28: 26 | DX28: 0 | DZ28: 46118.81 | EB28: 6694.84 | ED28: 4392.54 | EF28: 216285.77 | EH28: 13933.13 | EJ28: 7494.69 | EL28: 294919.78 | EM28: 26 | EN28: A | EO28: 1032.08 | EP28: A | EQ28: 7.48 | ER28: A | ES28: 366 | ET28: A | EU28: 889.82 | EV28: A | EW28: 1237.78 | EX28: A | EY28: 1273.63 | EZ28: A | FA28: 4806.79 | FB28: 26 | FD28: 0 | FF28: 1805.41 | FH28: 1805.41 | FI28: 26 | FJ28: A | FK28: 3886.61 | FL28: A | FM28: 3886.61 | FN28: 26 | FP28: 9345.51 | FQ28: 26 | FR28: A | FS28: 42066.18 | FU28: 0 | FV28: A | FW28: 42066.18 | FX28: 26 | FY28: A | FZ28: 108770.88 | GA28: A | GB28: 108770.88 | GC28: 26 | GE28: 0 | GG28: 0 | GI28: 0
A29: 27 | B29: B | C29: 347670.09 | D29: B | E29: 8839.49 | F29: B | G29: 12126.85 | I29: 12096.72 | K29: 49628.53 | L29: B | M29: 17922.14 | N29: B | O29: 5260.77 | P29: B | Q29: 8573.37 | R29: B | S29: 462117.96 | U29: 27 | W29: 1190.92 | X29: AB | Y29: 491.14 | Z29: AB | AA29: 37.97 | AB29: AB | AC29: 1720.02 | CV29: 5047.56 | CX29: 13924.54 | CZ29: 5862.77 | DA29: A | DB29: 748663.02 | DC29: 27 | DD29: A | DE29: 110467.31 | DG29: 3194.78 | DI29: 8897.49 | DK29: 1732.36 | DM29: 109307.88 | DO29: 0 | DQ29: 10559.35 | DS29: 541909.19 | DT29: A | DU29: 786068.37 | DV29: 27 | DX29: 0 | DZ29: 44221.3 | EB29: 6461.78 | ED29: 4304.8 | EF29: 211410.89 | EH29: 13497.03 | EJ29: 7367.93 | EL29: 287263.73 | EM29: 27 | EN29: A | EO29: 1533.79 | EP29: A | EQ29: 27.37 | ER29: A | ES29: 662.35 | ET29: A | EU29: 2432.36 | EV29: A | EW29: 1858.89 | EX29: A | EY29: 1969.17 | EZ29: A | FA29: 8483.94 | FB29: 27 | FC29: A C | FD29: 0 | FE29: A C | FF29: 29323.76 | FG29: A C | FH29: 29323.76 | FI29: 27 | FJ29: A | FK29: 4531.06 | FL29: A | FM29: 4531.06 | FN29: 27 | FP29: 18581.08 | FQ29: 27 | FR29: A | FS29: 58215.19 | FU29: 0 | FV29: A | FW29: 58215.19 | FX29: 27 | FY29: A | FZ29: 110973.12 | GA29: A | GB29: 110973.12 | GC29: 27 | GE29: 0 | GG29: 0 | GI29: 0
A30: 28 | B30: B | C30: 310346.34 | D30: B | E30: 8331.04 | F30: B | G30: 11501.23 | I30: 11209.49 | K30: 45628.75 | L30: B | M30: 17366.04 | N30: B | O30: 4840.16 | P30: B | Q30: 7720.43 | R30: B | S30: 416943.49 | U30: 28 | W30: 1135.23 | X30: AB | Y30: 462.24 | Z30: AB | AA30: 38.58 | AB30: AB | AC30: 500.82
A31: Итого | B31: ABC | C31: 11769893,75* | D31: B | E31: 306213.64 | F31: AB | G31: 414258.67 | I31: 408931.53 | K31: 1693691.41 | L31: AB | M31: 605102.92 | N31: B | O31: 175463.43 | P31: ABC | Q31: 282909,24* | R31: ABC | S31: 15656464,58* | U31: Итого | W31: 30328.78 | X31: AB | Y31: 8051.77 | Z31: AB | AA31: 767.65 | AB31: AB | AC31: 39148.2
